{"text_format":"1","workbook":"xlsx","n_sheets":7,"sheets":["données","Participants","Phase de poule","Classement","Phase finale","Feuille de match","Saisie FFB"],"not_rendered":{"charts":0,"images":0,"macros":1,"external_links":0,"defined_names":24,"comments":1,"pivot_tables":0},"unopened":[],"bounds":{"document_bytes":16777216,"sheet_cells":100000,"rows_first":2000,"rows_last":500,"rows_between":2000,"halvings":0,"cell_chars":16384,"cell_head_chars":4096},"cells_cut":0,"cells_raw":0,"read":"whole","date_system":"1900"}

{"sheet":"données","index":0,"n_rows":520,"n_cols":13,"rows_kept":520,"cut":false,"hidden":true,"merged":[[13,0,13,1],[0,9,0,13],[0,3,0,5]]}
["Mode de jeu","Catégorie","Tour","Compétiteurs",null,null,null,null,null,"Les Clubs"]
["Libre","Nationale 1","T1","Nom joueur","Club","Licence",null,"Forfait",null,"ARGENCES BILLARD CLUB             ","***","Place de la République","14370   ARGENCES"]
["Bande","Nationale 2","T2","Joueur blanc","Sans","Sans",null,null,null,"ASSUN BILLARD","Le clos Moisson","325, allée des Avoineries","50460   URVILLE - NACQUEVILLE"]
["3 bandes","Nationale 3","T3","ADNET FABRICE","BILLARD AMICAL CLUB LOVERIEN","017652Y",null,"Excusé",null,"BILLARD AMICAL CLUB LOVERIEN      ","***","3, rue Saint Jean","27400   LOUVIERS"]
["Cadre","Régionale","T4","AHAMD ABDUZALIL","BILLARD CLUB OSSELIEN","134671R",null,"Non excusé",null,"BILLARD CLUB ANDELYSIEN           ","***","3 et 5, rue Ste Clotilde","27700   LES ANDELYS"]
["4 billes","Régionale 1","T5","ALEXANDRE JACQUES","BILLARD CLUB SOTTEVILLAIS","017869H",null,null,null,"BILLARD CLUB CANY BARVILLE        ","Complexe sportif Sporticaux","Route de Veulettes","76450   CANY - BARVILLE"]
[null,"Régionale 2",null,"ALIA AHMED","BILLARD CLUB DE MAROMME","166242Y",null,null,null,"BILLARD CLUB CORMELLOIS           ","Halle des Sports","rue de la Pagnolée","14123   CORMELLES LE ROYAL"]
[null,"Régionale 3",null,"ALLART ELYSE","BILLARD CLUB DE SAINT-MARCEL","113094U",null,null,null,"BILLARD CLUB DE BERNAY","Gymnase Jacques Sébire","Chemin de la Couture","27300   BERNAY"]
[null,"Régionale 4",null,"ANDRE BERNARD","ASSUN BILLARD","140477Z",null,null,null,"BILLARD CLUB DE FECAMP            ","***","5, rue Henri Dunant","76400   FECAMP"]
[null,"Cadets",null,"ANTEM ANTOINE","BILLARD CLUB DE LA SAUSSAYE","017606E",null,null,null,"BILLARD CLUB DE LA SAUSSAYE       ","Le Mille Club","rue Lesage  - Maille","27370   LA SAUSSAYE"]
[null,"Juniors",null,"ARGENTIN JEAN LUC","BILLARD CLUB DE FECAMP","137351T",null,null,null,"BILLARD CLUB DE MAROMME","***","4, rue Jacquard","76150   MAROMME"]
[null,"Féminines",null,"ARRIVE JEAN LUC","BILLARD CLUB DE LA SAUSSAYE","100560S",null,null,null,"BILLARD CLUB DE SAINT NICOLAS     ","***","93, rue Laurent Lefèbvre","76510   SAINT NICOLAS D'ALIERMONT"]
[null,null,null,"AUBE ALAIN","BILLARD CLUB DE MAROMME","168020F",null,null,null,"BILLARD CLUB DE SAINT-MARCEL      ","Espace Saint Exupéry","2, rue Jules Ferry","27950   SAINT MARCEL"]
["Points de match",null,null,"AUBERT DANIEL","BILLARD CLUB ANDELYSIEN","131880I",null,null,null,"BILLARD CLUB EBROICIEN            ","Maison des Jeunes et de la Cullture","1, avenue Aristide Briand","27000   EVREUX"]
["Qualif","Final",null,"AUBERT JEAN PAUL","BILLARD CLUB ANDELYSIEN","129110U",null,null,null,"BILLARD CLUB GAILLONNAIS          ","Centre des Arts Contemporains","Allée de l'Ermitage","27600   GAILLON"]
[2,2,null,"AZIZIAN RICHARD","BILLARD CLUB DE SAINT NICOLAS","017803T",null,null,null,"BILLARD CLUB LEXOVIEN             ","Maison des Jeunes et de la Cullture","13, boulevard Louis Pasteur","14100   LISIEUX"]
[1,0,null,"BACHELET KARINE","BILLARD CLUB CANY BARVILLE","171761X",null,null,null,"BILLARD CLUB OSSELIEN             ","***","8, rue du manoir","76350   OISSEL"]
[0,null,null,"BAERT PHILIPPE","CLUB ECOLE HAVRAIS DE BILLARD","172578K",null,null,null,"BILLARD CLUB PACEEN               ","***","12, rue Montferrand","27120   PACY SUR EURE"]
[null,null,null,"BAILLY NICOLAS","BILLARD AMICAL CLUB LOVERIEN","129095F",null,null,null,"BILLARD CLUB SOTTEVILLAIS         ","***","123, rue Béranger","76300   SOTTEVILLE LES ROUEN"]
["Format billard",null,null,"BAIS PHILIPPE","ROUEN BILLARD CLUB","153013T",null,null,null,"CLUB ECOLE HAVRAIS DE BILLARD     ","***","76, rue des Briquetiers","76600   LE HAVRE"]
["2m40",null,null,"BARBIER JEAN LUC","BILLARD CLUB EBROICIEN","017571V",null,null,null,"PATRONAGE LAIQUE ARGENTAN         ","Ecole Pierre Curie","Route de Urou","61200   ARGENTAN"]
["2m60",null,null,"BASSIERE JEAN PIERRE","BILLARD CLUB DE BERNAY","154338J",null,null,null,"ROUEN BILLARD CLUB                ","Espace de la Petite Bouverie","Allée Pierre de Coubertin","76100   ROUEN"]
["2m80",null,null,"BATAILLE VINCENT","ROUEN BILLARD CLUB","017754W"]
["3m10",null,null,"BATTE JEAN MARC","BILLARD CLUB DE SAINT NICOLAS","017531H"]
["2m40 pc",null,null,"BAUDER GILBERT","BILLARD CLUB CANY BARVILLE","017689J"]
["2m60 pc",null,null,"BAVILLE SYLVAIN","BILLARD CLUB SOTTEVILLAIS","152619Q"]
["2m60 gc",null,null,"BAZAUD FRANCK","ROUEN BILLARD CLUB","122758M"]
["2m80 pc",null,null,"BEAUGRAND CHRISTIAN","BILLARD CLUB CANY BARVILLE","161679N"]
["2m80 gc",null,null,"BEAUVAIS JEAN FRANCOIS","CLUB ECOLE HAVRAIS DE BILLARD","140954I"]
["3m10 pc",null,null,"BEGUIN CLAUDE","BILLARD CLUB ANDELYSIEN","150707M"]
["3m10 gc",null,null,"BELDAME DANIEL","BILLARD CLUB DE LA SAUSSAYE","112270C"]
[null,null,null,"BELINY GILLES","BILLARD CLUB DE LA SAUSSAYE","017706A"]
[null,null,null,"BENDJEMILA TOFIR","ROUEN BILLARD CLUB","017734C"]
[null,null,null,"BERTRAND MICHEL","BILLARD CLUB SOTTEVILLAIS","142970W"]
[null,null,null,"BESLIN DANIEL","BILLARD CLUB CORMELLOIS","172500A"]
[null,null,null,"BETON DOMINIQUE","BILLARD AMICAL CLUB LOVERIEN","017629B"]
[null,null,null,"BETON VALERIE","BILLARD AMICAL CLUB LOVERIEN","147263T"]
[null,null,null,"BEZARD GEORGES","BILLARD CLUB DE LA SAUSSAYE","137339H"]
[null,null,null,"BEZNOSUC MARIE JOSE","BILLARD CLUB DE BERNAY","169239F"]
[null,null,null,"BIANCHINI JEAN ROBERT","CLUB ECOLE HAVRAIS DE BILLARD","106781Z"]
[null,null,null,"BIDAULT ALAIN","ROUEN BILLARD CLUB","160279R"]
[null,null,null,"BIENAIME ERIC","BILLARD CLUB DE MAROMME","162881V"]
[null,null,null,"BIETTE CLAUDE","BILLARD CLUB LEXOVIEN","017497Z"]
[null,null,null,"BILLARD DAVID","BILLARD CLUB CORMELLOIS","017465T"]
[null,null,null,"BLIN ARMEL","BILLARD CLUB ANDELYSIEN","169474L"]
[null,null,null,"BLONDEL JEAN THIERRY","CLUB ECOLE HAVRAIS DE BILLARD","144155L"]
[null,null,null,"BOCQUAIN JEAN PIERRE","CLUB ECOLE HAVRAIS DE BILLARD","112554A"]
[null,null,null,"BOGO JACQUES","BILLARD CLUB LEXOVIEN","138293Z"]
[null,null,null,"BOITARD MARC","BILLARD CLUB DE MAROMME","136732Y"]
[null,null,null,"BONHOMME ERIC","CLUB ECOLE HAVRAIS DE BILLARD","144156M"]
[null,null,null,"BOTREL DAVID","BILLARD CLUB DE MAROMME","156426D"]
[null,null,null,"BOUGOUIN JEAN MICHEL","BILLARD CLUB CORMELLOIS","149537Q"]
[null,null,null,"BOULIER ALAIN","BILLARD CLUB DE SAINT-MARCEL","152578W"]
[null,null,null,"BOURGET ALAIN","BILLARD CLUB CORMELLOIS","017466U"]
[null,null,null,"BOUTILLOT CHRISTIAN","BILLARD CLUB DE LA SAUSSAYE","163734X"]
[null,null,null,"BOUTIN GILLES","BILLARD CLUB DE MAROMME","017457L"]
[null,null,null,"BOUTIN GUY","ROUEN BILLARD CLUB","124623F"]
[null,null,null,"BOUTTIER JACKY","ROUEN BILLARD CLUB","153690E"]
[null,null,null,"BOUVIER BERTRAND","BILLARD CLUB CORMELLOIS","149399Q"]
[null,null,null,"BOUVIER GUILLAUME","BILLARD CLUB CORMELLOIS","149400R"]
[null,null,null,"BOUXIN ERIC","BILLARD CLUB DE MAROMME","167390W"]
[null,null,null,"BRAEMS FLORIAN","BILLARD CLUB CANY BARVILLE","160931A"]
[null,null,null,"BREUGNON BERNARD","BILLARD CLUB GAILLONNAIS","167321W"]
[null,null,null,"BROWANG CLAUDE","BILLARD CLUB GAILLONNAIS","107038W"]
[null,null,null,"BROWANG ERIC","BILLARD CLUB DE LA SAUSSAYE","170924M"]
[null,null,null,"BROWANG JEROME","BILLARD CLUB GAILLONNAIS","107039X"]
[null,null,null,"BROWANG MICHEL","BILLARD CLUB GAILLONNAIS","107040Y"]
[null,null,null,"BRULARD DANIEL","BILLARD AMICAL CLUB LOVERIEN","017658E"]
[null,null,null,"BRUNET ANDRE","BILLARD CLUB LEXOVIEN","017746O"]
[null,null,null,"BUDIN BERNARD","ASSUN BILLARD","163871W"]
[null,null,null,"BURGOT FRANCINE","BILLARD CLUB SOTTEVILLAIS","169893R"]
[null,null,null,"BURGOT FRANCOIS","BILLARD CLUB SOTTEVILLAIS","169892Q"]
[null,null,null,"BUSTOS MIGUEL ANGEL","ROUEN BILLARD CLUB","171767D"]
[null,null,null,"BUTELET JEAN PAUL","BILLARD CLUB DE LA SAUSSAYE","017610I"]
[null,null,null,"CADINOT SEBASTIEN","BILLARD CLUB OSSELIEN","158947T"]
[null,null,null,"CAJEAN PHILIPPE","BILLARD CLUB EBROICIEN","010634A"]
[null,null,null,"CALLENS TIMEO","BILLARD CLUB CANY BARVILLE","166291B"]
[null,null,null,"CARDON JEAN CLAUDE","BILLARD CLUB SOTTEVILLAIS","017542S"]
[null,null,null,"CARLIER ALAIN","BILLARD CLUB ANDELYSIEN","153754Z"]
[null,null,null,"CARPENTIER CHRISTIAN","BILLARD CLUB PACEEN","135579P"]
[null,null,null,"CARPENTIER DIDIER","BILLARD CLUB DE FECAMP","152654D"]
[null,null,null,"CARRE PIERRE","BILLARD CLUB CORMELLOIS","017467V"]
[null,null,null,"CAUWET NOEL","ROUEN BILLARD CLUB","104533N"]
[null,null,null,"CAZAUX JEAN MARC","CLUB ECOLE HAVRAIS DE BILLARD","017643P"]
[null,null,null,"CAZEAUBON SERGE","CLUB ECOLE HAVRAIS DE BILLARD","167848T"]
[null,null,null,"CHAGNOT JEAN CLAUDE","BILLARD CLUB OSSELIEN","017621T"]
[null,null,null,"CHALVET PATRICE","BILLARD CLUB DE SAINT-MARCEL","018027J"]
[null,null,null,"CHAMP FRANCOIS","ROUEN BILLARD CLUB","159430T"]
[null,null,null,"CHANSON PIERRE","ASSUN BILLARD","111053H"]
[null,null,null,"CHAPLEAU FRANCOIS","CLUB ECOLE HAVRAIS DE BILLARD","137817R"]
[null,null,null,"CHARBONNIER PHILIPPE","BILLARD CLUB CANY BARVILLE","127340S"]
[null,null,null,"CHARRON EDITH","ARGENCES BILLARD CLUB","169334J"]
[null,null,null,"CHESNEAU JACQUES","BILLARD CLUB DE SAINT-MARCEL","133832K"]
[null,null,null,"CHESNEL MATHIEU","BILLARD CLUB DE SAINT NICOLAS","017896I"]
[null,null,null,"CHESNEL PATRICK","BILLARD CLUB DE SAINT NICOLAS","116629T"]
[null,null,null,"CHEVALIER PHILIPPE","BILLARD CLUB DE BERNAY","126208E"]
[null,null,null,"CHEVON NOA","ROUEN BILLARD CLUB","168778E"]
[null,null,null,"CHOLLET LIONEL","BILLARD CLUB DE LA SAUSSAYE","107240Q"]
[null,null,null,"CHOQUART PIERRE","BILLARD CLUB SOTTEVILLAIS","133876C"]
[null,null,null,"CHOUPAUT BRUNO","BILLARD CLUB SOTTEVILLAIS","151711D"]
[null,null,null,"CLEMENT FABRICE","BILLARD CLUB DE MAROMME","152233W"]
[null,null,null,"COCHARD PATRICK","BILLARD AMICAL CLUB LOVERIEN","145961X"]
[null,null,null,"COCY GILLES","CLUB ECOLE HAVRAIS DE BILLARD","017709D"]
[null,null,null,"COLINET JEAN LUC","BILLARD CLUB ANDELYSIEN","153098L"]
[null,null,null,"COLLE GREGORY","BILLARD CLUB OSSELIEN","017823N"]
[null,null,null,"COLLE CONTE ILANE","BILLARD CLUB SOTTEVILLAIS","172024H"]
[null,null,null,"COLLE CONTE LUDOVIC","BILLARD CLUB SOTTEVILLAIS","172023G"]
[null,null,null,"COLLERY GABRIEL","BILLARD CLUB DE BERNAY","172379T"]
[null,null,null,"COLOMER ALAIN","BILLARD CLUB CORMELLOIS","172501B"]
[null,null,null,"CORNO YVES","BILLARD CLUB PACEEN","142307J"]
[null,null,null,"COTTEN JEAN PIERRE","ROUEN BILLARD CLUB","017516S"]
[null,null,null,"COUCHOT BERNARD","BILLARD CLUB CORMELLOIS","112010C"]
[null,null,null,"COURTOIS PIERRE","BILLARD CLUB DE MAROMME","168350P"]
[null,null,null,"CUVIER GILLES","BILLARD CLUB CANY BARVILLE","120322U"]
[null,null,null,"CUVILLIEZ FRANCOISE","BILLARD CLUB DE FECAMP","150560C"]
[null,null,null,"DAIGLE MICHEL","BILLARD CLUB CORMELLOIS","145242G"]
[null,null,null,"DAIREAUX SERGE","BILLARD CLUB EBROICIEN","106824Q"]
[null,null,null,"DAON OLIVIER","ARGENCES BILLARD CLUB","169727L"]
[null,null,null,"DAUBEUF THIERRY","CLUB ECOLE HAVRAIS DE BILLARD","170708C"]
[null,null,null,"DAUSSY JEAN CLAUDE","BILLARD CLUB DE FECAMP","148177M"]
[null,null,null,"DAUTRY ANNICK","BILLARD AMICAL CLUB LOVERIEN","106284W"]
[null,null,null,"DAVITTI CLAUDE","BILLARD CLUB OSSELIEN","144074I"]
[null,null,null,"DAVOINE BRUNO","ROUEN BILLARD CLUB","017482K"]
[null,null,null,"DE TOFFOLI JEAN ANTOINE","BILLARD CLUB GAILLONNAIS","017476E"]
[null,null,null,"DEFREVILLE ANTHONY","BILLARD CLUB DE MAROMME","157510G"]
[null,null,null,"DELALANDRE FRANCOIS","BILLARD CLUB CANY BARVILLE","168981A"]
[null,null,null,"DELALANDRE VERONIQUE","BILLARD CLUB CANY BARVILLE","168982B"]
[null,null,null,"DELALONDRE MAX","BILLARD AMICAL CLUB LOVERIEN","110690I"]
[null,null,null,"DELAMARRE ERIC","BILLARD AMICAL CLUB LOVERIEN","129114Y"]
[null,null,null,"DELARUE GILLES","BILLARD CLUB EBROICIEN","169557B"]
[null,null,null,"DELARUE JEAN FRANCOIS","BILLARD CLUB OSSELIEN","165274W"]
[null,null,null,"DELIGNY JEAN CLAUDE","BILLARD CLUB DE FECAMP","100518C"]
[null,null,null,"DEMAREST MARCEL","BILLARD CLUB ANDELYSIEN","170125T"]
[null,null,null,"DEMERE CHRISTIAN","CLUB ECOLE HAVRAIS DE BILLARD","124007N"]
[null,null,null,"DEMOTTAIS JEAN JACQUES","BILLARD CLUB DE MAROMME","165991A"]
[null,null,null,"DENZEN LELAIDIER DOLCHE","BILLARD CLUB CORMELLOIS","168817X"]
[null,null,null,"DEPARIS PATRICK","BILLARD CLUB DE SAINT NICOLAS","142823F"]
[null,null,null,"DERONGS DANIEL","BILLARD CLUB ANDELYSIEN","147139J"]
[null,null,null,"DESCHAMPS MICHEL","BILLARD CLUB DE BERNAY","172071J"]
[null,null,null,"DESHAYES YANN","BILLARD AMICAL CLUB LOVERIEN","172018B"]
[null,null,null,"DESLANDES WILFRIED","CLUB DE POOL VERNON","147559Q"]
[null,null,null,"DESMARES DOMINIQUE","BILLARD CLUB DE MAROMME","165839K"]
[null,null,null,"DESOUDIN CEDRIC","BILLARD CLUB DE MAROMME","157256F"]
[null,null,null,"DESSERRE ALEXANDRE","BILLARD CLUB DE MAROMME","136733Z"]
[null,null,null,"DEZETANT MARCEL","BILLARD CLUB DE LA SAUSSAYE","017627Z"]
[null,null,null,"DIAGA RADJOU VINCENT","BILLARD CLUB CANY BARVILLE","109583T"]
[null,null,null,"DOMENGER JEAN FRANCOIS","CLUB ECOLE HAVRAIS DE BILLARD","164326Q"]
[null,null,null,"DONNEGER ABEL","ROUEN BILLARD CLUB","017790G"]
[null,null,null,"DROGUE GILLES","ASSUN BILLARD","138388Q"]
[null,null,null,"DU BOUCHAGE MICKAEL","BILLARD CLUB CORMELLOIS","126212I"]
[null,null,null,"DUBOIS THIERRY","ARGENCES BILLARD CLUB","169451L"]
[null,null,null,"DUBOISREVENU GERALD","ARGENCES BILLARD CLUB","134693N"]
[null,null,null,"DUBUC GUILLAUME","BILLARD CLUB DE MAROMME","166097Q"]
[null,null,null,"DUBUC LOUIS","BILLARD CLUB DE MAROMME","166098R"]
[null,null,null,"DUCATHE PHILIPPE","BILLARD CLUB CANY BARVILLE","164840Z"]
[null,null,null,"DUCROCQ DIDIER","BILLARD CLUB DE LA SAUSSAYE","145451H"]
[null,null,null,"DUMARTIN BERTRAND","BILLARD AMICAL CLUB LOVERIEN","163172L"]
[null,null,null,"DUMOND PIERRE","BILLARD CLUB DE SAINT-MARCEL","136046O"]
[null,null,null,"DUONG KHENN","BILLARD AMICAL CLUB LOVERIEN","161710X"]
[null,null,null,"DUPONCHEL ALAIN","CLUB ECOLE HAVRAIS DE BILLARD","112556C"]
[null,null,null,"DUPRE PATRICK","BILLARD CLUB CANY BARVILLE","100586S"]
[null,null,null,"DURANTI GILLES","CLUB ECOLE HAVRAIS DE BILLARD","138224I"]
[null,null,null,"DURDEK ALAIN","BILLARD CLUB CORMELLOIS","168816W"]
[null,null,null,"DUTHEIL JACQUES","BILLARD CLUB SOTTEVILLAIS","138165B"]
[null,null,null,"DUTHIL JEAN","BILLARD CLUB SOTTEVILLAIS","017820K"]
[null,null,null,"DUTOT DAMIEN","BILLARD CLUB DE FECAMP","142404C"]
[null,null,null,"DUTOT GERALD","CLUB ECOLE HAVRAIS DE BILLARD","145692O"]
[null,null,null,"DUVAL BERNARD","CLUB ECOLE HAVRAIS DE BILLARD","140957L"]
[null,null,null,"DUVAL JEAN PAUL","BILLARD CLUB DE FECAMP","157684W"]
[null,null,null,"DUVAL LUDOVIC","BILLARD CLUB EBROICIEN","159869W"]
[null,null,null,"DUVAL MICHEL","BILLARD CLUB DE SAINT NICOLAS","146926C"]
[null,null,null,"DUVAL RENE","BILLARD CLUB CORMELLOIS","129045H"]
[null,null,null,"ECOURTEMER STEPHANE","ASSUN BILLARD","018131J"]
[null,null,null,"EICHHOLTZER CLAUDE","BILLARD CLUB DE FECAMP","125798K"]
[null,null,null,"ELIE JOANNES","ARGENCES BILLARD CLUB","142933L"]
[null,null,null,"ERLENBACH FRANCOIS","CLUB ECOLE HAVRAIS DE BILLARD","155194P"]
[null,null,null,"ERONTE MICHEL","BILLARD CLUB SOTTEVILLAIS","017986U"]
[null,null,null,"ESLIER GUY","BILLARD CLUB CORMELLOIS","112009B"]
[null,null,null,"ESTRIER JEAN CLAUDE","CLUB ECOLE HAVRAIS DE BILLARD","017770M"]
[null,null,null,"EUDIER DIDIER","CLUB ECOLE HAVRAIS DE BILLARD","159595Y"]
[null,null,null,"EUDIER MICHEL","PATRONAGE LAIQUE ARGENTAN","017713H"]
[null,null,null,"EVRARD JAMES","BILLARD CLUB DE LA SAUSSAYE","157076K"]
[null,null,null,"EVRARD LYLIAN","BILLARD CLUB DE LA SAUSSAYE","153268W"]
[null,null,null,"FACQUET SUKMA","ROUEN BILLARD CLUB","152234X"]
[null,null,null,"FACQUET VINCENT","ROUEN BILLARD CLUB","013085H"]
[null,null,null,"FAISANT RAYMOND","ROUEN BILLARD CLUB","012137V"]
[null,null,null,"FERNANDEZ ROBIN","BILLARD CLUB CANY BARVILLE","141784G"]
[null,null,null,"FERRON JEAN MARC","BILLARD CLUB DE BERNAY","164847G"]
[null,null,null,"FESTE MICHEL","ARGENCES BILLARD CLUB","169338N"]
[null,null,null,"FLEURY YVES","BILLARD CLUB CORMELLOIS","100521F"]
[null,null,null,"FONTAINE YANN","ROUEN BILLARD CLUB","131886O"]
[null,null,null,"FOSSEY MATHIEU","BILLARD CLUB PACEEN","168801E"]
[null,null,null,"FOUCRET STEPHANE","BILLARD CLUB DE SAINT-MARCEL","104154Y"]
[null,null,null,"FOURNIAL CHRISTIAN","BILLARD CLUB ANDELYSIEN","150542H"]
[null,null,null,"FRANCOIS RENE","BILLARD CLUB SOTTEVILLAIS","108288Y"]
[null,null,null,"FRANGNE PHILIPPE","BILLARD CLUB DE MAROMME","165902D"]
[null,null,null,"FREGER XAVIER","BILLARD CLUB DE FECAMP","168691K"]
[null,null,null,"GALAN JEAN CLAUDE","BILLARD CLUB ANDELYSIEN","142631V"]
[null,null,null,"GARO NAEL","BILLARD CLUB PACEEN","156465W"]
[null,null,null,"GARREAU CYRIL","BILLARD AMICAL CLUB LOVERIEN","147667H"]
[null,null,null,"GASCHY DAMIEN","BILLARD AMICAL CLUB LOVERIEN","160307X"]
[null,null,null,"GAUTIER ALAIN","BILLARD CLUB CORMELLOIS","169561F"]
[null,null,null,"GERMAIN CYRILLE","BILLARD CLUB DE BERNAY","017461P"]
[null,null,null,"GERVAIS PHILIPPE","BILLARD CLUB CANY BARVILLE","152579X"]
[null,null,null,"GESTIN JACQUES","BILLARD CLUB LEXOVIEN","154536Z"]
[null,null,null,"GEYER SERGE","BILLARD CLUB DE SAINT-MARCEL","017687H"]
[null,null,null,"GILLE PHILIPPE","BILLARD CLUB DE FECAMP","102207B"]
[null,null,null,"GILLOT MARCEL","BILLARD AMICAL CLUB LOVERIEN","013242I"]
[null,null,null,"GLINEL MORTREUIL CLAUDE","BILLARD CLUB DE MAROMME","165097D"]
[null,null,null,"GNOCCHI GIANPAOLO","BILLARD CLUB SOTTEVILLAIS","124614W"]
[null,null,null,"GOARNISSON VALENTIN","ROUEN BILLARD CLUB","162096R"]
[null,null,null,"GODILLE SYLVAIN","BILLARD CLUB CORMELLOIS","126213J"]
[null,null,null,"GONZALES JOSE","BILLARD CLUB CORMELLOIS","107057P"]
[null,null,null,"GOREGUES LOIC","ROUEN BILLARD CLUB","143286A"]
[null,null,null,"GOSNON OLIVIER","ARGENCES BILLARD CLUB","127187V"]
[null,null,null,"GOUDIER DANIELLE","BILLARD CLUB LEXOVIEN","137446K"]
[null,null,null,"GOUGEAUD MICHEL","CLUB ECOLE HAVRAIS DE BILLARD","137819T"]
[null,null,null,"GOUSSETIS GEORGES","ROUEN BILLARD CLUB","112008A"]
[null,null,null,"GOUSSIN JEAN PAUL","CLUB ECOLE HAVRAIS DE BILLARD","018086Q"]
[null,null,null,"GRANDSIRE ALAIN","BILLARD CLUB OSSELIEN","158946S"]
[null,null,null,"GRASSIN MICHEL","BILLARD CLUB EBROICIEN","143290E"]
[null,null,null,"GRENET LOUIS","BILLARD CLUB DE SAINT NICOLAS","141991F"]
[null,null,null,"GRENU GUY","BILLARD CLUB SOTTEVILLAIS","156138Q"]
[null,null,null,"GRETILLAT XAVIER","BILLARD CLUB OSSELIEN","138447X"]
[null,null,null,"GROSDEMANGE JULIEN","BILLARD CLUB DE SAINT NICOLAS","144620I"]
[null,null,null,"GUERET GERARD","BILLARD CLUB SOTTEVILLAIS","018138Q"]
[null,null,null,"GUERIN DAVID","ROUEN BILLARD CLUB","017939Z"]
[null,null,null,"GUEROULT DOMINIQUE","BILLARD CLUB SOTTEVILLAIS","157731X"]
[null,null,null,"GUEROUT JEAN PIERRE","BILLARD CLUB SOTTEVILLAIS","156477J"]
[null,null,null,"GUIGNON ERIC","BILLARD CLUB DE SAINT NICOLAS","017536M"]
[null,null,null,"GUIGNON JIM","BILLARD CLUB DE SAINT NICOLAS","017537N"]
[null,null,null,"GUILLAUME MICHEL","BILLARD CLUB SOTTEVILLAIS","169779S"]
[null,null,null,"GUINCETRE FRANCOIS","CLUB ECOLE HAVRAIS DE BILLARD","143613P"]
[null,null,null,"GUYADER ERWAN","BILLARD CLUB EBROICIEN","152484T"]
[null,null,null,"GUYADER GAEL","BILLARD CLUB EBROICIEN","017653Z"]
[null,null,null,"HABRAN JEAN PIERRE","BILLARD CLUB DE BERNAY","163902E"]
[null,null,null,"HAFED LAURENT","BILLARD CLUB CORMELLOIS","116626Q"]
[null,null,null,"HAQUIN HERVE","ASSUN BILLARD","147303M"]
[null,null,null,"HAUBERDON RENE","BILLARD CLUB DE FECAMP","140340S"]
[null,null,null,"HAUCK MICHEL","BILLARD CLUB CANY BARVILLE","125710A"]
[null,null,null,"HAVEZ DAVID","BILLARD CLUB DE MAROMME","154374Y"]
[null,null,null,"HAZART HAMEL GERARD","BILLARD CLUB SOTTEVILLAIS","134863B"]
[null,null,null,"HENRY CATHERINE","CLUB ECOLE HAVRAIS DE BILLARD","156840D"]
[null,null,null,"HENRY SERGE","CLUB ECOLE HAVRAIS DE BILLARD","017637J"]
[null,null,null,"HEQUET JEAN FRANCOIS","BILLARD CLUB ANDELYSIEN","172304M"]
[null,null,null,"HIDEE SEBASTIEN","BILLARD CLUB SOTTEVILLAIS","172025J"]
[null,null,null,"HOMMET CHARLES","ROUEN BILLARD CLUB","105787T"]
[null,null,null,"HONG PHI BANG","BILLARD AMICAL CLUB LOVERIEN","166245B"]
[null,null,null,"HORCHOLLES DAVID","BILLARD CLUB GAILLONNAIS","018123B"]
[null,null,null,"HOREL CHRISTIAN","BILLARD CLUB CORMELLOIS","106832Y"]
[null,null,null,"HUARD SEBASTIEN","BILLARD CLUB DE MAROMME","155987B"]
[null,null,null,"HUBERT CLAUDE","ROUEN BILLARD CLUB","153902K"]
[null,null,null,"HUBERT YVON","BILLARD CLUB CANY BARVILLE","161713A"]
[null,null,null,"HUE JEAN","BILLARD CLUB CORMELLOIS","140475X"]
[null,null,null,"HUET JEAN LOUIS","CLUB ECOLE HAVRAIS DE BILLARD","145695R"]
[null,null,null,"HUGER MICHEL","BILLARD CLUB DE LA SAUSSAYE","017614M"]
[null,null,null,"IPPOLITO PASCAL","BILLARD CLUB SOTTEVILLAIS","018041X"]
[null,null,null,"JACQ LAURENT","ROUEN BILLARD CLUB","017912Y"]
[null,null,null,"JAFFRAY THIERRY","BILLARD CLUB CORMELLOIS","104165J"]
[null,null,null,"JAMI M HAMED","BILLARD CLUB SOTTEVILLAIS","168259Q"]
[null,null,null,"JAQUINANDI DANIEL","BILLARD CLUB CANY BARVILLE","013391B"]
[null,null,null,"JUBLOT DENIS","BILLARD CLUB DE MAROMME","017978M"]
[null,null,null,"JUMELIN ALEXIS","ARGENCES BILLARD CLUB","172609T"]
[null,null,null,"JUMELIN EMMANUEL","ARGENCES BILLARD CLUB","140473V"]
[null,null,null,"KAHOFER ARNIM","BILLARD CLUB OSSELIEN","140034Y"]
[null,null,null,"KENZEY PATRICK","BILLARD CLUB EBROICIEN","017485N"]
[null,null,null,"LALLEMAND DIDIER","ASSUN BILLARD","017874M"]
[null,null,null,"LAMBERT EUDES","PATRONAGE LAIQUE ARGENTAN","140033X"]
[null,null,null,"LANGEVIN THIERY","BILLARD CLUB CORMELLOIS","168815V"]
[null,null,null,"LANGLOIS CHRISTIAN","CLUB ECOLE HAVRAIS DE BILLARD","018105J"]
[null,null,null,"LANIEU JASON","BILLARD CLUB CANY BARVILLE","163789G"]
[null,null,null,"LAPERT PATRICK","CLUB DE POOL VERNON","116636A"]
[null,null,null,"LAURENT PHILIPPE","BILLARD CLUB SOTTEVILLAIS","112307N"]
[null,null,null,"LAURENT VALERY","ROUEN BILLARD CLUB","017732A"]
[null,null,null,"LE CAER THIERRY","BILLARD CLUB ANDELYSIEN","129144C"]
[null,null,null,"LE MESLE CHRISTOPHE","BILLARD CLUB EBROICIEN","165122F"]
[null,null,null,"LE MOULEC ALAIN","CLUB ECOLE HAVRAIS DE BILLARD","135751F"]
[null,null,null,"LE MOULEC JOHNNY","CLUB ECOLE HAVRAIS DE BILLARD","135752G"]
[null,null,null,"LE RAILLER GERALD","BILLARD CLUB DE SAINT NICOLAS","151478A"]
[null,null,null,"LEBEGUE JEAN","ARGENCES BILLARD CLUB","157910R"]
[null,null,null,"LEBOUCHER PASCAL","CLUB ECOLE HAVRAIS DE BILLARD","126223T"]
[null,null,null,"LEBOURGEOIS PHILIPPE","ROUEN BILLARD CLUB","017763F"]
[null,null,null,"LEBRETON ALAIN","BILLARD CLUB LEXOVIEN","013523D"]
[null,null,null,"LECANU JEAN MARC","BILLARD CLUB DE LA SAUSSAYE","169320T"]
[null,null,null,"LECLERC MARC","BILLARD CLUB PACEEN","165970C"]
[null,null,null,"LECOEUR RENEE","BILLARD CLUB DE LA SAUSSAYE","145449F"]
[null,null,null,"LECORNE LAURENT","BILLARD CLUB DE SAINT-MARCEL","171962Q"]
[null,null,null,"LEDUC PATRICK","BILLARD CLUB CORMELLOIS","142969V"]
[null,null,null,"LEDUEY LUDOVIC","BILLARD CLUB DE MAROMME","110509J"]
[null,null,null,"LEFEBVRE BERNARD","ROUEN BILLARD CLUB","159458Z"]
[null,null,null,"LEFEVRE PHILIPPE","ARGENCES BILLARD CLUB","017875N"]
[null,null,null,"LEFEVRE YANNICK","BILLARD CLUB LEXOVIEN","147057V"]
[null,null,null,"LEGEMBRE KILLIAN","BILLARD CLUB CANY BARVILLE","171482T"]
[null,null,null,"LEGENDRE CEDRIC","ROUEN BILLARD CLUB","011123V"]
[null,null,null,"LEGENDRE CHARLES","ROUEN BILLARD CLUB","153994K"]
[null,null,null,"LEGENDRE GERARD","BILLARD CLUB DE SAINT NICOLAS","131482A"]
[null,null,null,"LEGENDRE NATHAN","ROUEN BILLARD CLUB","148558B"]
[null,null,null,"LEGRAND PHILIPPE","BILLARD CLUB CANY BARVILLE","166852L"]
[null,null,null,"LEGRET ALEXIAN","BILLARD CLUB CORMELLOIS","144318S"]
[null,null,null,"LEHARIVEL DENIS","BILLARD CLUB CORMELLOIS","124649F"]
[null,null,null,"LEJEUNE BRUNO","BILLARD CLUB SOTTEVILLAIS","166608W"]
[null,null,null,"LELEVRIER MICHEL","BILLARD AMICAL CLUB LOVERIEN","153100N"]
[null,null,null,"LELIEVRE ANTOINE","ARGENCES BILLARD CLUB","166141N"]
[null,null,null,"LELOIR MICHEL","BILLARD CLUB DE SAINT NICOLAS","017997F"]
[null,null,null,"LEMOIGNE PIERRE","BILLARD CLUB PACEEN","127747J"]
[null,null,null,"LENOIR JEAN MARC","BILLARD CLUB DE BERNAY","169351C"]
[null,null,null,"LEPINAY PIERRE","BILLARD CLUB LEXOVIEN","017597V"]
[null,null,null,"LEPLANOIS VIRGINIE","BILLARD CLUB DE BERNAY","169234A"]
[null,null,null,"LEPORQ FRANCOIS","CLUB ECOLE HAVRAIS DE BILLARD","131887P"]
[null,null,null,"LEPRETRE BERNARD","BILLARD CLUB DE BERNAY","164248F"]
[null,null,null,"LEROI JEAN CLAUDE","BILLARD CLUB DE LA SAUSSAYE","147405Y"]
[null,null,null,"LESCAN JACQUES","BILLARD CLUB SOTTEVILLAIS","138167D"]
[null,null,null,"LESELLIER PASCAL","BILLARD CLUB CORMELLOIS","017786C"]
[null,null,null,"LETELLIER GILLES","BILLARD CLUB DE SAINT-MARCEL","172274E"]
[null,null,null,"LETULLIER BRUNO","CLUB ECOLE HAVRAIS DE BILLARD","135753H"]
[null,null,null,"LEVACHER STEPHANE","BILLARD CLUB DE MAROMME","120314M"]
[null,null,null,"LEVIEUX AURELIEN","BILLARD CLUB DE MAROMME","163707S"]
[null,null,null,"LEVILLAIN BEURIOT THOMAS","BILLARD CLUB CANY BARVILLE","166696R"]
[null,null,null,"LHEUREUX RICHARD","BILLARD CLUB DE LA SAUSSAYE","133458A"]
[null,null,null,"LIARD BERNARD","BILLARD CLUB CORMELLOIS","106833Z"]
[null,null,null,"LIBERT LOUIS PIERRE","BILLARD CLUB CANY BARVILLE","147566Y"]
[null,null,null,"LINGRAND BERNARD","BILLARD CLUB LEXOVIEN","162572J"]
[null,null,null,"LOMBARD PATRICK","BILLARD CLUB SOTTEVILLAIS","142975B"]
[null,null,null,"LORGET EMMANUEL","BILLARD CLUB OSSELIEN","144781N"]
[null,null,null,"LORIN JIMMY","ROUEN BILLARD CLUB","011876U"]
[null,null,null,"LOUIS ANDRE","BILLARD CLUB DE SAINT-MARCEL","171961P"]
[null,null,null,"LOURSEL ALAIN","ROUEN BILLARD CLUB","017731Z"]
[null,null,null,"LOZAC OLIVIER","BILLARD CLUB CORMELLOIS","171890M"]
[null,null,null,"MAGNAN JEAN LUC","BILLARD CLUB DE LA SAUSSAYE","018043Z"]
[null,null,null,"MAHEUT ALEXANDRE","BILLARD CLUB DE FECAMP","160531Q"]
[null,null,null,"MAHIEU NORBERT","BILLARD CLUB OSSELIEN","122711R"]
[null,null,null,"MAISON MICHEL","BILLARD CLUB SOTTEVILLAIS","150113R"]
[null,null,null,"MARCHAIS PHILIPPE","PATRONAGE LAIQUE ARGENTAN","106835B"]
[null,null,null,"MARCHAIS RAPHAEL","ROUEN BILLARD CLUB","171976F"]
[null,null,null,"MARCIENNE JEAN BAPTISTE","BILLARD CLUB CORMELLOIS","172502C"]
[null,null,null,"MARECHAL LAURENT","BILLARD CLUB EBROICIEN","169559D"]
[null,null,null,"MARGERIE ERIC","BILLARD CLUB CORMELLOIS","168814T"]
[null,null,null,"MARRE JEAN CLAUDE","BILLARD CLUB CORMELLOIS","018002K"]
[null,null,null,"MARTIN JEAN CHRISTOPHE","ASSUN BILLARD","017799P"]
[null,null,null,"MARTINEAU PATRICE","BILLARD CLUB EBROICIEN","169560E"]
[null,null,null,"MARTINS JOSE BRAZ","ROUEN BILLARD CLUB","154240C"]
[null,null,null,"MARTORY PASCAL","BILLARD CLUB OSSELIEN","017664K"]
[null,null,null,"MARTORY PIERRE","BILLARD CLUB OSSELIEN","144782O"]
[null,null,null,"MARY JEAN CLAUDE","BILLARD CLUB DE BERNAY","153309Q"]
[null,null,null,"MASSON JEAN PIERRE","BILLARD CLUB DE LA SAUSSAYE","158108G"]
[null,null,null,"MATEOS RAYMOND","BILLARD CLUB PACEEN","126235F"]
[null,null,null,"MAULIEN AXEL","BILLARD CLUB PACEEN","170827G"]
[null,null,null,"MAUNOURY LAURENT","BILLARD CLUB CORMELLOIS","146122C"]
[null,null,null,"MAZE JEAN PIERRE","CLUB ECOLE HAVRAIS DE BILLARD","137816Q"]
[null,null,null,"MEGNAN JEAN PIERRE","BILLARD CLUB SOTTEVILLAIS","133889P"]
[null,null,null,"MEMMI GIANLUCA","ROUEN BILLARD CLUB","168681Z"]
[null,null,null,"MERCET HUGUES","CLUB ECOLE HAVRAIS DE BILLARD","017744M"]
[null,null,null,"MERETTE MICHEL","BILLARD CLUB CANY BARVILLE","146431Z"]
[null,null,null,"MICHAULT MARC","BILLARD AMICAL CLUB LOVERIEN","163171K"]
[null,null,null,"MICHON PHILIPPE","ROUEN BILLARD CLUB","165898Z"]
[null,null,null,"MIGA LAURENT","BILLARD CLUB OSSELIEN","149312W"]
[null,null,null,"MILLET DANIEL","BILLARD CLUB OSSELIEN","017867F"]
[null,null,null,"MINAULT JACQUES","BILLARD CLUB CANY BARVILLE","144302C"]
[null,null,null,"MINOUX JOEL","BILLARD CLUB CANY BARVILLE","170818X"]
[null,null,null,"MIRKOVIC MICHEL","BILLARD CLUB EBROICIEN","147085A"]
[null,null,null,"MOLINA CHRISTIAN","BILLARD CLUB SOTTEVILLAIS","145457N"]
[null,null,null,"MONNIER WILLIAM","ROUEN BILLARD CLUB","172325K"]
[null,null,null,"MONTADOR JEAN GABRIEL","BILLARD CLUB DE SAINT NICOLAS","131483B"]
[null,null,null,"MONTAGNE JEAN MARIE","BILLARD CLUB CORMELLOIS","168813S"]
[null,null,null,"MOREL FRANCIS","BILLARD CLUB DE LA SAUSSAYE","142932K"]
[null,null,null,"MOREL PATRICE","BILLARD CLUB OSSELIEN","138381J"]
[null,null,null,"MORLET JEAN","BILLARD CLUB DE LA SAUSSAYE","170315A"]
[null,null,null,"MOTTEAU LAURENT","BILLARD CLUB DE BERNAY","156736Q"]
[null,null,null,"MOULIN DANIEL","BILLARD CLUB CORMELLOIS","159291S"]
[null,null,null,"MOUSSET DAMIEN","BILLARD CLUB DE FECAMP","170094K"]
[null,null,null,"NEVEU LAURENT","BILLARD CLUB DE MAROMME","100555N"]
[null,null,null,"NEVEU PATRICK","BILLARD CLUB DE MAROMME","168019E"]
[null,null,null,"NICOLAS REMY","ROUEN BILLARD CLUB","160828N"]
[null,null,null,"NOEL GERARD","CLUB ECOLE HAVRAIS DE BILLARD","126227X"]
[null,null,null,"NOLLAND CHRISTIAN","BILLARD CLUB DE SAINT NICOLAS","137340I"]
[null,null,null,"NOTHEAUX JACQUES","BILLARD CLUB SOTTEVILLAIS","157733Z"]
[null,null,null,"NOWAK MICHAEL","BILLARD CLUB DE LA SAUSSAYE","017827R"]
[null,null,null,"OSTOR FRANCK","BILLARD CLUB DE LA SAUSSAYE","118847B"]
[null,null,null,"OUMAZIZ MARC","BILLARD CLUB DE SAINT NICOLAS","169327B"]
[null,null,null,"PAILLIE CYRILLE","PATRONAGE LAIQUE ARGENTAN","134656C"]
[null,null,null,"PAJON MARIE PIERRE","BILLARD CLUB DE SAINT-MARCEL","150068S"]
[null,null,null,"PARENT ALAIN","BILLARD CLUB EBROICIEN","017655B"]
[null,null,null,"PARIS OLIVIER","BILLARD CLUB CORMELLOIS","163529Z"]
[null,null,null,"PARMENTIER FRANC","BILLARD CLUB DE LA SAUSSAYE","017477F"]
[null,null,null,"PARNY MATYS","BILLARD CLUB PACEEN","169344V"]
[null,null,null,"PATOUREAUX THIERRY","BILLARD CLUB CANY BARVILLE","166736K"]
[null,null,null,"PATRY BRUNO","BILLARD CLUB CORMELLOIS","168812R"]
[null,null,null,"PELLETIER CHRISTIAN","BILLARD CLUB SOTTEVILLAIS","170121P"]
[null,null,null,"PERRIER JEAN","BILLARD CLUB DE FECAMP","017694O"]
[null,null,null,"PERROT JACKY","BILLARD CLUB CANY BARVILLE","152580Y"]
[null,null,null,"PETIT JOHANN","BILLARD CLUB OSSELIEN","017604C"]
[null,null,null,"PETIT SERGE","BILLARD CLUB DE MAROMME","168803G"]
[null,null,null,"PETITGRAND CLAUDE","BILLARD CLUB PACEEN","165969B"]
[null,null,null,"PETITON YANN","BILLARD CLUB DE FECAMP","100516A"]
[null,null,null,"PHILIPPE JEAN","ROUEN BILLARD CLUB","149830J"]
[null,null,null,"PICANDET FRANCOIS","BILLARD CLUB CORMELLOIS","149401S"]
[null,null,null,"PICARD ANDRE","BILLARD CLUB DE LA SAUSSAYE","148806W"]
[null,null,null,"PICARD ARTHUR","BILLARD CLUB OSSELIEN","160869H"]
[null,null,null,"PICARD CATHERINE","ASSUN BILLARD","163870V"]
[null,null,null,"PICARD SERGE","BILLARD CLUB OSSELIEN","167868Q"]
[null,null,null,"PICQUENOT JEAN PAUL","ASSUN BILLARD","145453J"]
[null,null,null,"PIERREL BRUNO","BILLARD CLUB SOTTEVILLAIS","017817H"]
[null,null,null,"PIETRZYK JEAN PIERRE","BILLARD CLUB DE MAROMME","155481B"]
[null,null,null,"PINEL RICHARD","BILLARD CLUB ANDELYSIEN","147140K"]
[null,null,null,"PITOIS FRANCIS","ARGENCES BILLARD CLUB","138573T"]
[null,null,null,"PITZ GEOFFROY","BILLARD CLUB DE MAROMME","128613R"]
[null,null,null,"PLESSIS GERARD","PATRONAGE LAIQUE ARGENTAN","106837D"]
[null,null,null,"PLOUARD ROLAND","BILLARD CLUB DE SAINT NICOLAS","169328C"]
[null,null,null,"POGNON MARIUS","BILLARD CLUB DE MAROMME","172029N"]
[null,null,null,"POIGNYE PATRICK","BILLARD CLUB SOTTEVILLAIS","142977D"]
[null,null,null,"POLLET DIDIER","BILLARD CLUB SOTTEVILLAIS","112582C"]
[null,null,null,"PONTHIEUX CHRISTIAN","ROUEN BILLARD CLUB","017730Y"]
[null,null,null,"PORET ANDRE","CLUB ECOLE HAVRAIS DE BILLARD","145700W"]
[null,null,null,"POUCHIN MAX","BILLARD CLUB CANY BARVILLE","018050G"]
[null,null,null,"POUL RAYMOND","ASSUN BILLARD","127825J"]
[null,null,null,"POULAIN JOSE","BILLARD CLUB DE SAINT NICOLAS","169329D"]
[null,null,null,"POULAIN YANNICK","BILLARD CLUB DE SAINT NICOLAS","169330E"]
[null,null,null,"POULET MARC","BILLARD CLUB DE LA SAUSSAYE","122687T"]
[null,null,null,"POUX JEAN LOUIS","ASSUN BILLARD","147997R"]
[null,null,null,"PREVOST PATRICE","BILLARD CLUB DE FECAMP","115463X"]
[null,null,null,"PREVOST PIERRE","ARGENCES BILLARD CLUB","117900Q"]
[null,null,null,"PREVOST ROGER","BILLARD CLUB DE SAINT NICOLAS","131485D"]
[null,null,null,"PRIEUR SEBASTIEN","BILLARD CLUB DE SAINT-MARCEL","118093B"]
[null,null,null,"PRIN MICHAEL","BILLARD CLUB CORMELLOIS","149403V"]
[null,null,null,"PROENCA ARMANDO","BILLARD CLUB DE MAROMME","165901C"]
[null,null,null,"PRUVOST MICHEL","BILLARD CLUB LEXOVIEN","137451P"]
[null,null,null,"PUSKAS MATTHIEU","BILLARD CLUB DE MAROMME","110520U"]
[null,null,null,"QUEILLE RICHARD","BILLARD CLUB SOTTEVILLAIS","162896L"]
[null,null,null,"QUESNOT LIONNEL","ROUEN BILLARD CLUB","140480C"]
[null,null,null,"QUILLAUD GERARD","BILLARD CLUB SOTTEVILLAIS","159709X"]
[null,null,null,"QUILLAUD PAULETTE","BILLARD CLUB SOTTEVILLAIS","159713B"]
[null,null,null,"RACHET ALAIN","BILLARD CLUB SOTTEVILLAIS","017909V"]
[null,null,null,"RAMDANI IBRAHIM","ROUEN BILLARD CLUB","154864F"]
[null,null,null,"REAUDIN GERARD","BILLARD CLUB CORMELLOIS","017727V"]
[null,null,null,"REICHSTADT ERIC","BILLARD CLUB DE BERNAY","163598Z"]
[null,null,null,"RENAULT LOUIS","CLUB ECOLE HAVRAIS DE BILLARD","170500B"]
[null,null,null,"RIBOULET LAURENT","BILLARD CLUB CORMELLOIS","116625P"]
[null,null,null,"RIGOLET GEORGES","ARGENCES BILLARD CLUB","141079D"]
[null,null,null,"RIPOLL JEAN YVES","BILLARD CLUB DE LA SAUSSAYE","118084S"]
[null,null,null,"RIVIERE CLAUDE","BILLARD CLUB ANDELYSIEN","159757Z"]
[null,null,null,"RIVOAL CYRILLE","BILLARD CLUB CORMELLOIS","140476Y"]
[null,null,null,"ROBERGE BRUNO","ROUEN BILLARD CLUB","017572W"]
[null,null,null,"ROBERT PIERRE","BILLARD CLUB DE BERNAY","134861Z"]
[null,null,null,"ROBIN JACQUES","BILLARD CLUB SOTTEVILLAIS","124617Z"]
[null,null,null,"ROBIN SEBASTIEN","BILLARD CLUB DE MAROMME","131519L"]
[null,null,null,"ROHART THIERRY","BILLARD CLUB SOTTEVILLAIS","148983N"]
[null,null,null,"ROLLAND ALAIN","CLUB ECOLE HAVRAIS DE BILLARD","144165V"]
[null,null,null,"ROMAIN ANTOINE","ARGENCES BILLARD CLUB","166144R"]
[null,null,null,"ROMAIN PATRICK","CLUB ECOLE HAVRAIS DE BILLARD","121127T"]
[null,null,null,"ROMELE ROLLAND","BILLARD CLUB CORMELLOIS","171934K"]
[null,null,null,"RONDU JACQUES","BILLARD AMICAL CLUB LOVERIEN","155024E"]
[null,null,null,"ROQUIGNY REMY","BILLARD CLUB DE LA SAUSSAYE","127143D"]
[null,null,null,"ROSCHBACH THIERRY","PATRONAGE LAIQUE ARGENTAN","144717B"]
[null,null,null,"ROSSI FRANCIS","ROUEN BILLARD CLUB","172007P"]
[null,null,null,"ROUSSEAU GERARD","ASSUN BILLARD","171005A"]
[null,null,null,"ROYE EMMANUEL","BILLARD CLUB CORMELLOIS","171889L"]
[null,null,null,"ROZE JACQUES","BILLARD AMICAL CLUB LOVERIEN","017974I"]
[null,null,null,"RUEDA RENE","CLUB ECOLE HAVRAIS DE BILLARD","017721P"]
[null,null,null,"SAINT REQUIER CHRISTIAN","BILLARD CLUB DE MAROMME","167738Z"]
[null,null,null,"SAMMUT JEAN CLAUDE","BILLARD CLUB DE FECAMP","147880P"]
[null,null,null,"SAMSON RONALD","BILLARD CLUB GAILLONNAIS","017495X"]
[null,null,null,"SANDT CHRISTIAN","BILLARD CLUB SOTTEVILLAIS","149174W"]
[null,null,null,"SANNIER SERGE","BILLARD CLUB DE LA SAUSSAYE","017829T"]
[null,null,null,"SAUVAGE JEAN PAUL","ROUEN BILLARD CLUB","158548K"]
[null,null,null,"SAUVAGE XAVIER","BILLARD CLUB SOTTEVILLAIS","166458H"]
[null,null,null,"SCHMITT CLAUDE","BILLARD CLUB DE LA SAUSSAYE","017478G"]
[null,null,null,"SCHWARTZ ALAIN","BILLARD AMICAL CLUB LOVERIEN","149904P"]
[null,null,null,"SEGARD PAUL","BILLARD CLUB DE FECAMP","170495W"]
[null,null,null,"SEGUIN PATRICK","BILLARD CLUB DE SAINT NICOLAS","171974D"]
[null,null,null,"SENCERT DIDIER","ROUEN BILLARD CLUB","109089T"]
[null,null,null,"SIMON ANDRE","BILLARD CLUB CORMELLOIS","122927Z"]
[null,null,null,"SIMON THOMAS","BILLARD CLUB DE MAROMME","157254D"]
[null,null,null,"SOLMON HERVE","BILLARD CLUB GAILLONNAIS","017626Y"]
[null,null,null,"SORTAIS CLAUDE","ROUEN BILLARD CLUB","017602A"]
[null,null,null,"SOULLIER GINO","CLUB ECOLE HAVRAIS DE BILLARD","164003P"]
[null,null,null,"SPANG PHILIPPE","BILLARD CLUB DE LA SAUSSAYE","170314Z"]
[null,null,null,"STAIGRE JEROME","BILLARD CLUB DE LA SAUSSAYE","018141T"]
[null,null,null,"STEELS JEAN MICHEL","CLUB ECOLE HAVRAIS DE BILLARD","172579L"]
[null,null,null,"SURLEMONT JEROME","BILLARD CLUB DE MAROMME","172205E"]
[null,null,null,"TALBOT MICHEL","ROUEN BILLARD CLUB","017544U"]
[null,null,null,"TALBOT REGIS","BILLARD CLUB CANY BARVILLE","170812Q"]
[null,null,null,"TELLIER BRUNO","BILLARD CLUB GAILLONNAIS","143284Y"]
[null,null,null,"THIRY ROBERT","BILLARD CLUB LEXOVIEN","017818I"]
[null,null,null,"THOMAS JEANNE","BILLARD CLUB CORMELLOIS","163589P"]
[null,null,null,"THOMAS PIERRE","BILLARD CLUB CORMELLOIS","166071M"]
[null,null,null,"THORY MICHEL","CLUB ECOLE HAVRAIS DE BILLARD","126230A"]
[null,null,null,"THUILLIER JEAN CLAUDE","BILLARD CLUB PACEEN","017671R"]
[null,null,null,"THUILLIER PIERRE","CLUB ECOLE HAVRAIS DE BILLARD","136729V"]
[null,null,null,"TILLON YVES","BILLARD CLUB DE BERNAY","153297C"]
[null,null,null,"TISSOT JEAN MICHEL","ASSUN BILLARD","149889Y"]
[null,null,null,"TOSTAIN ALEX","CLUB ECOLE HAVRAIS DE BILLARD","169973D"]
[null,null,null,"TOUCHAIS JEAN YVES","ROUEN BILLARD CLUB","170915C"]
[null,null,null,"TOURNEBIZE BENJAMIN","BILLARD CLUB DE BERNAY","172312W"]
[null,null,null,"TOUTAIN REMI","BILLARD CLUB PACEEN","159676L"]
[null,null,null,"TREHET SERGE","BILLARD CLUB GAILLONNAIS","018140S"]
[null,null,null,"TROUSSIER PIERRE","BILLARD CLUB LEXOVIEN","017498A"]
[null,null,null,"TY JOSHUA","BILLARD AMICAL CLUB LOVERIEN","161122H"]
[null,null,null,"ULRICH ALAIN","ASSUN BILLARD","101687B"]
[null,null,null,"VALLE JOEL","BILLARD CLUB DE MAROMME","107251B"]
[null,null,null,"VALLIER RENE","BILLARD CLUB DE MAROMME","166048M"]
[null,null,null,"VALLOIS CHRISTOPHE","BILLARD CLUB DE SAINT NICOLAS","166311Y"]
[null,null,null,"VARACHE ALBAN","CLUB ECOLE HAVRAIS DE BILLARD","100599F"]
[null,null,null,"VARACHE SERGE","CLUB ECOLE HAVRAIS DE BILLARD","017650W"]
[null,null,null,"VARIGNON DOMINIQUE","BILLARD CLUB DE SAINT NICOLAS","131487F"]
[null,null,null,"VARIN ODETTE","BILLARD CLUB ANDELYSIEN","137522I"]
[null,null,null,"VASSEUR YANNICK","BILLARD CLUB DE SAINT NICOLAS","122848Y"]
[null,null,null,"VAUR PHILIPPE","PATRONAGE LAIQUE ARGENTAN","104066O"]
[null,null,null,"VERDREL DIDIER","BILLARD CLUB DE SAINT NICOLAS","139912G"]
[null,null,null,"VEREL SEBASTIEN","BILLARD CLUB OSSELIEN","141213H"]
[null,null,null,"VERITE LEO","BILLARD AMICAL CLUB LOVERIEN","160306W"]
[null,null,null,"VERITE STEPHANE","BILLARD AMICAL CLUB LOVERIEN","160305V"]
[null,null,null,"VICTORIA VINCENT","ARGENCES BILLARD CLUB","100615V"]
[null,null,null,"VIGNE PIERRE","BILLARD CLUB GAILLONNAIS","018005N"]
[null,null,null,"VIMBERT JEAN","CLUB ECOLE HAVRAIS DE BILLARD","017991Z"]
[null,null,null,"VINCENT DANIEL","BILLARD CLUB PACEEN","126236G"]
[null,null,null,"VOYER MICHEL","BILLARD CLUB ANDELYSIEN","017856U"]
[null,null,null,"VUILLEQUEY GEORGES","BILLARD CLUB DE BERNAY","166757H"]
[null,null,null,"WILLEMYNS JACK","BILLARD CLUB PACEEN","126237H"]
[null,null,null,"ZIMMERLIN DANIEL","BILLARD CLUB SOTTEVILLAIS","017923J"]
[null,null,null,"ZWAENEPOEL PHILIPPE","BILLARD CLUB DE SAINT NICOLAS","124290K"]

{"sheet":"Participants","index":1,"n_rows":21,"n_cols":11,"rows_kept":21,"cut":false,"hidden":false,"merged":[[1,1,1,6],[3,10,4,11],[13,10,14,11],[6,9,7,12],[8,10,8,12],[9,10,9,12],[10,10,10,12],[19,9,19,12],[20,9,20,12],[11,10,11,12],[9,9,10,9],[17,1,18,1],[17,4,18,6],[17,9,17,12],[18,9,18,12]]}
[]
[null,"LIGUE DE NORMANDIE DE BILLARD 2020-2021"]
[]
[null,"Directeur de jeu",null,"Mode de jeu","Catégorie","Tour","Distance",null,null,null,"Phase de poule"]
[]
[null,"Date de l'épreuve",null,null,"Format  billard"]
[null,null,null,null,null,null,null,null,null,"LIEU DE L'EPREUVE"]
[]
[null,null,null,"Nom et Prénom","Club d'appartenance","Licence","Points de Classement\nacquis avant ce tour",null,null,"Nom Club"]
[null,"Tête de série A1",null,null,{"$f":"IFERROR(IF(D10<>\"\",VLOOKUP(D10,info_joueur,2,FALSE),\" \"),\"\")","v":" "},{"$f":"IFERROR(IF(D10<>\"\",VLOOKUP(D10,info_joueur,3,FALSE),\" \"),\"\")","v":" "},null,null,null,"n° et rue",{"$f":"IF(K9<>\"\",VLOOKUP(K9,données!$J$2:$M$23,2,FALSE),\"\")","v":""}]
[null,"Joueur A2",null,null,{"$f":"IFERROR(IF(D11<>\"\",VLOOKUP(D11,info_joueur,2,FALSE),\" \"),\"\")","v":" "},{"$f":"IFERROR(IF(D11<>\"\",VLOOKUP(D11,info_joueur,3,FALSE),\" \"),\"\")","v":" "},null,null,null,null,{"$f":"IF(K9<>\"\",VLOOKUP(K9,données!$J$2:$M$23,3,FALSE),\"\")","v":""}]
[null,"Joueur A3",null,null,{"$f":"IFERROR(IF(D12<>\"\",VLOOKUP(D12,info_joueur,2,FALSE),\" \"),\"\")","v":" "},{"$f":"IFERROR(IF(D12<>\"\",VLOOKUP(D12,info_joueur,3,FALSE),\" \"),\"\")","v":" "},null,null,null,"CP + Ville",{"$f":"IF(K9<>\"\",VLOOKUP(K9,données!$J$2:$M$23,4,FALSE),\"\")","v":""}]
[]
[null,"Tête de série B1",null,null,{"$f":"IFERROR(IF(D14<>\"\",VLOOKUP(D14,info_joueur,2,FALSE),\" \"),\"\")","v":" "},{"$f":"IFERROR(IF(D14<>\"\",VLOOKUP(D14,info_joueur,3,FALSE),\" \"),\"\")","v":" "},null,null,null,null,"Feuille de match"]
[null,"Joueur B2",null,null,{"$f":"IFERROR(IF(D15<>\"\",VLOOKUP(D15,info_joueur,2,FALSE),\" \"),\"\")","v":" "},{"$f":"IFERROR(IF(D15<>\"\",VLOOKUP(D15,info_joueur,3,FALSE),\" \"),\"\")","v":" "}]
[null,"Joueur B3",null,null,{"$f":"IFERROR(IF(D16<>\"\",VLOOKUP(D16,info_joueur,2,FALSE),\" \"),\"\")","v":" "},{"$f":"IFERROR(IF(D16<>\"\",VLOOKUP(D16,info_joueur,3,FALSE),\" \"),\"\")","v":" "}]
[]
[null,"Version : 7.7\ndu : 08/10/2020",null,"Dans tous les feuillets :","Les cellules grisées sont à renseigner à partir de listes préétablies ou bien manuellement.\nIl est possible de saisir une donnée différente de celles proposées par la liste.",null,null,null,null,"Attention"]
[null,null,null,null,null,null,null,null,null,"Points de ranking : 1er = 22   &   2ème = 19  etc ….."]
[null,null,null,null,null,null,null,null,null,"Voir l'annexe 6 du règlement Carambole"]
[null,null,null,null,null,null,null,null,null,"Points de classement = points de ranking + points de match"]

{"sheet":"Phase de poule","index":2,"n_rows":19,"n_cols":17,"rows_kept":19,"cut":false,"hidden":false,"merged":[[10,14,10,15],[12,14,12,15],[8,1,9,1],[3,16,3,17],[4,16,4,18],[6,16,6,18],[6,9,6,11],[8,9,8,11],[10,9,10,11],[12,9,12,11],[7,9,7,11],[9,9,9,11],[11,9,11,11],[18,3,19,4],[18,6,19,7],[0,0,0,12],[13,0,16,0],[13,1,14,1],[15,1,16,1],[3,1,4,1],[10,1,11,1],[8,0,11,0],[3,0,6,0],[5,1,6,1],[1,8,3,12],[15,9,15,11],[13,9,13,11]]}
["Ranking   -   T6   -   Phase de Poule"]
[null,null,null,null,null,null,null,null,"ATTENTION\nSi après le premier tour, 2 joueurs sont à égalité (points, reprises et série) c'est le joueur n° 3 qui dispute le 2ème tour contre le joueur n° 1"]
["Tour","Poule","Joueur","Points","Reprises","Série","Points de match","Moyenne"]
[1,"A",{"$f":"IF(Participants!D11<>\"\",Participants!D11,\"\")","v":""},null,null,null,null,{"$f":"IFERROR(D4/E4,\"\")","v":""},null,null,null,null,null,null,null,null,"Vainqueur T1"]
[null,null,{"$f":"IF(Participants!D12<>\"\",Participants!D12,\"\")","v":""},null,{"$f":"IF(E4<>\"\",E4,\"\")","v":""},null,{"$f":"IF(G4<>\"\",2-G4,\"\")","v":""},{"$f":"IFERROR(D5/E5,\"\")","v":""},null,null,null,null,null,null,"Poule A",null,{"$f":"IF(H4>H5,C4,IF(H4=H5,IF(OR(F4>F5,F4=F5),C4,C5),C5))","v":""}]
[null,"B",{"$f":"IF(Participants!D15<>\"\",Participants!D15,\"\")","v":""},null,null,null,null,{"$f":"IFERROR(D6/E6,\"\")","v":""}]
[null,null,{"$f":"IF(Participants!D16<>\"\",Participants!D16,\"\")","v":""},null,{"$f":"IF(E6<>\"\",E6,\"\")","v":""},null,{"$f":"IF(G6<>\"\",2-G6,\"\")","v":""},{"$f":"IFERROR(D7/E7,\"\")","v":""},null,"Date",null,null,null,null,"Poule B",null,{"$f":"IF(H6>H7,C6,IF(H6=H7,IF(OR(F6>F7,F6=F7),C6,C7),C7))","v":""}]
[null,null,null,null,null,null,null,null,null,{"$f":"IF(Participants!B7<>\"\",Participants!B7,\"\")","v":""}]
[2,"A",{"$f":"IF(Q11=0,IF(Participants!D10<>\"\",Participants!D10,\"\"),\"\")","v":""},null,null,null,null,{"$f":"IFERROR(D9/E9,\"\")","v":""},null,"Catégorie",null,null,null,null,"Total"]
[null,null,{"$f":"IF(Q11=0,IF(Q5=Participants!D11,Participants!D12,Participants!D11),\"\")","v":""},null,{"$f":"IF(E9<>\"\",E9,\"\")","v":""},null,{"$f":"IF(G9<>\"\",2-G9,\"\")","v":""},{"$f":"IFERROR(D10/E10,\"\")","v":""},null,{"$f":"IF(Participants!E5<>\"\",Participants!E5,\" \")","v":" "}]
[null,"B",{"$f":"IF(Q13=0,IF(Participants!D14<>\"\",Participants!D14,\"\"),\"\")","v":""},null,null,null,null,{"$f":"IFERROR(D11/E11,\"\")","v":""},null,"Distance",null,null,null,null,"Nb_vide T1A",null,{"$f":"COUNTBLANK(D4:H5)","v":10}]
[null,null,{"$f":"IF(Q13=0,IF(Q7=Participants!D15,Participants!D16,Participants!D15),\"\")","v":""},null,{"$f":"IF(E11<>\"\",E11,\"\")","v":""},null,{"$f":"IF(G11<>\"\",2-G11,\"\")","v":""},{"$f":"IFERROR(D12/E12,\"\")","v":""},null,{"$f":"IF(Participants!G5<>\"\",Participants!G5,\" \")","v":" "}]
[null,null,null,null,null,null,null,{"$f":"IF(E13>0,D13/E13,\"\")","v":""},null,"Mode de jeu",null,null,null,null,"Nb_vide T1B",null,{"$f":"COUNTBLANK(D6:H7)","v":10}]
[3,"A",{"$f":"IF(Q11=0,IF(Participants!D10<>\"\",Participants!D10,\"\"),\"\")","v":""},null,null,null,null,{"$f":"IFERROR(D14/E14,\"\")","v":""},null,{"$f":"IF(Participants!D5<>\"\",Participants!D5,\" \")","v":" "}]
[null,null,{"$f":"IF(Q11=0,Q5,\"\")","v":""},null,{"$f":"IF(E14<>\"\",E14,\"\")","v":""},null,{"$f":"IF(G14<>\"\",2-G14,\"\")","v":""},{"$f":"IFERROR(D15/E15,\"\")","v":""}]
[null,"B",{"$f":"IF(Q13=0,IF(Participants!D14<>\"\",Participants!D14,\"\"),\"\")","v":""},null,null,null,null,{"$f":"IFERROR(D16/E16,\"\")","v":""},null,"Points de match"]
[null,null,{"$f":"IF(Q13=0,Q7,\"\")","v":""},null,{"$f":"IF(E16<>\"\",E16,\"\")","v":""},null,{"$f":"IF(G16<>\"\",2-G16,\"\")","v":""},{"$f":"IFERROR(D17/E17,\"\")","v":""},null,"Gagné","=  2 points"]
[null,null,null,null,null,null,null,null,null,"Nul","=  1 point"]
[null,null,null,"Classement",null,null,"Participants",null,null,"Perdu","=  0 point"]

{"sheet":"Classement","index":3,"n_rows":27,"n_cols":15,"rows_kept":27,"cut":false,"hidden":false,"merged":[[1,5,2,8],[15,11,15,12],[5,11,5,12],[0,11,0,12],[1,11,1,12],[2,11,2,12],[3,11,3,12],[4,11,4,13],[0,0,0,6],[3,2,3,10],[26,4,27,5],[26,7,27,8],[6,11,6,12],[7,11,7,12],[9,11,9,12],[10,11,10,12],[16,11,16,12],[20,11,20,12],[21,11,21,12],[22,11,22,12],[11,11,11,12],[14,11,14,13],[19,11,19,13],[23,11,23,12]]}
["LIGUE DE NORMANDIE DE BILLARD",null,null,null,null,null,null,null,null,null,null,"Date :",null,{"$f":"IF(Participants!B7<>\"\",Participants!B7,\"\")","v":""}]
[null,null,null,null,null,"CLASSEMENT",null,null,null,null,null,"Mode de jeu :",null,{"$f":"IF(Participants!D5<>\"\",Participants!D5,\"\")","v":""}]
[null,null,null,null,null,null,null,null,null,null,null,"Catégorie :",null,{"$f":"IF(Participants!E5<>\"\",Participants!E5,\"\")","v":""}]
[null,null,"Le classement s'effectue selon les points de match puis la moyenne, la moyenne particulière et la série si nécessaire",null,null,null,null,null,null,null,null,"Distance :",null,{"$f":"IF(Participants!G5<>\"\",Participants!G5,\"\")","v":""}]
[null,null,"Classement général par poule","points","reprises","série","moyenne particulière ","moyenne ","points de match",null,"Classement","Saisir 1, 2 ou 3 dans la colonne classement"]
[null,{"$f":"K6","v":0},{"$f":"IF(Participants!D10=\"\",\"\",Participants!D10)","v":""},{"$f":"SUM('Feuille de match'!B14:B16)","v":0},{"$f":"SUM('Feuille de match'!C14:C16)","v":0},{"$f":"MAX('Feuille de match'!D14:D16)","v":0},{"$f":"MAX('Feuille de match'!O13:Q13)","v":0},{"$f":"IF(E6>0,D6/E6,0)","v":0},{"$f":"SUM('Feuille de match'!F14:F16)","v":0},null,null,"1er",null,{"$f":"IFERROR(VLOOKUP(1,$B$6:$C$8,2,FALSE),\"\")","v":""}]
[null,{"$f":"K7","v":0},{"$f":"IF(Participants!D11=\"\",\"\",Participants!D11)","v":""},{"$f":"SUM('Feuille de match'!B30:B32)","v":0},{"$f":"SUM('Feuille de match'!C30:C32)","v":0},{"$f":"MAX('Feuille de match'!D30:D32)","v":0},{"$f":"MAX('Feuille de match'!O29:Q29)","v":0},{"$f":"IF(E7>0,D7/E7,0)","v":0},{"$f":"SUM('Feuille de match'!F30:F32)","v":0},null,null,"2ème",null,{"$f":"IFERROR(VLOOKUP(2,$B$6:$C$8,2,FALSE),\"\")","v":""}]
[null,0,{"$f":"IF(Participants!D12=\"\",\"\",Participants!D12)","v":""},{"$f":"SUM('Feuille de match'!B46:B48)","v":0},{"$f":"SUM('Feuille de match'!C46:C48)","v":0},{"$f":"MAX('Feuille de match'!D46:D48)","v":0},{"$f":"MAX('Feuille de match'!O45:Q45)","v":0},{"$f":"IF(E8>0,D8/E8,0)","v":0},{"$f":"SUM('Feuille de match'!F46:F48)","v":0},null,null,"3ème",null,{"$f":"IFERROR(VLOOKUP(3,$B$6:$C$8,2,FALSE),\"\")","v":""}]
[]
[null,0,{"$f":"IF(Participants!D14=\"\",\"\",Participants!D14)","v":""},{"$f":"SUM('Feuille de match'!I14:I16)","v":0},{"$f":"SUM('Feuille de match'!J14:J16)","v":0},{"$f":"MAX('Feuille de match'!K14:K16)","v":0},{"$f":"MAX('Feuille de match'!U13:W13)","v":0},{"$f":"IF(E10>0,D10/E10,)","v":0},{"$f":"SUM('Feuille de match'!M14:M16)","v":0},null,null,"1er",null,{"$f":"IFERROR(VLOOKUP(1,$B$10:$C$12,2,FALSE),\"\")","v":""}]
[null,0,{"$f":"IF(Participants!D15=\"\",\"\",Participants!D15)","v":""},{"$f":"SUM('Feuille de match'!I30:I32)","v":0},{"$f":"SUM('Feuille de match'!J30:J32)","v":0},{"$f":"MAX('Feuille de match'!K30:K32)","v":0},{"$f":"MAX('Feuille de match'!U29:W29)","v":0},{"$f":"IF(E11>0,D11/E11,0)","v":0},{"$f":"SUM('Feuille de match'!M30:M32)","v":0},null,null,"2ème",null,{"$f":"IFERROR(VLOOKUP(2,$B$10:$C$12,2,FALSE),\"\")","v":""}]
[null,0,{"$f":"IF(Participants!D16=\"\",\"\",Participants!D16)","v":""},{"$f":"SUM('Feuille de match'!I46:I48)","v":0},{"$f":"SUM('Feuille de match'!J46:J48)","v":0},{"$f":"MAX('Feuille de match'!K46:K48)","v":0},{"$f":"MAX('Feuille de match'!U45:W45)","v":0},{"$f":"IF(E12>0,D12/E12,0)","v":0},{"$f":"SUM('Feuille de match'!M46:M48)","v":0},null,null,"3ème",null,{"$f":"IFERROR(VLOOKUP(3,$B$10:$C$12,2,FALSE),\"\")","v":""}]
[]
[]
[null,null,"Classement des vainqueurs de poule",null,null,null,null,null,null,null,null,"Saisir 1 ou 2 dans la colonne classement"]
[null,0,{"$f":"N6","v":""},{"$f":"IFERROR(VLOOKUP($C$16,$C$6:$I$8,2,FALSE),0)","v":0},{"$f":"IFERROR(VLOOKUP($C$16,$C$6:$I$8,3,FALSE),0)","v":0},{"$f":"IFERROR(VLOOKUP($C$16,$C$6:$I$8,4,FALSE),0)","v":0},{"$f":"IFERROR(VLOOKUP($C$16,$C$6:$I$8,5,FALSE),0)","v":0},{"$f":"IFERROR(VLOOKUP($C$16,$C$6:$I$8,6,FALSE),0)","v":0},{"$f":"IFERROR(VLOOKUP($C$16,$C$6:$I$8,7,FALSE),0)","v":0},null,null,"1er",null,{"$f":"IFERROR(VLOOKUP(1,$B$16:$C$17,2,FALSE),\"\")","v":""},{"$f":"IF(N16<>\"\",VLOOKUP(N16,$C$6:$J$13,8,FALSE),\"\")","v":""}]
[null,0,{"$f":"N10","v":""},{"$f":"IFERROR(VLOOKUP($C$17,$C$10:$I$12,2,FALSE),0)","v":0},{"$f":"IFERROR(VLOOKUP($C$17,$C$10:$I$12,3,FALSE),0)","v":0},{"$f":"IFERROR(VLOOKUP($C$17,$C$10:$I$12,4,FALSE),0)","v":0},{"$f":"IFERROR(VLOOKUP($C$17,$C$10:$I$12,5,FALSE),0)","v":0},{"$f":"IFERROR(VLOOKUP($C$17,$C$10:$I$12,6,FALSE),0)","v":0},{"$f":"IFERROR(VLOOKUP($C$17,$C$10:$I$12,7,FALSE),0)","v":0},null,null,"2ème",null,{"$f":"IFERROR(VLOOKUP(2,$B$16:$C$17,2,FALSE),\"\")","v":""},{"$f":"IF(N17<>\"\",VLOOKUP(N17,$C$6:$J$13,8,FALSE),\"\")","v":""}]
[null,null,null,null,null,null,null,null,null,null,null,false]
[]
[null,null,"Classement des joueurs de 3 à 6",null,null,null,null,null,null,null,null,"Saisir 3, 4, 5, ou 6 dans la colonne classement"]
[null,0,{"$f":"N7","v":""},{"$f":"IFERROR(VLOOKUP($C$21,$C$6:$I$13,2,FALSE),0)","v":0},{"$f":"IFERROR(VLOOKUP($C$21,$C$6:$I$13,3,FALSE),0)","v":0},{"$f":"IFERROR(VLOOKUP($C$21,$C$6:$I$13,4,FALSE),0)","v":0},{"$f":"IFERROR(VLOOKUP($C$21,$C$6:$I$13,5,FALSE),0)","v":0},{"$f":"IFERROR(VLOOKUP($C$21,$C$6:$I$13,6,FALSE),0)","v":0},{"$f":"IFERROR(VLOOKUP($C$21,$C$6:$I$13,7,FALSE),0)","v":0},null,null,"3ème",null,{"$f":"IF(L18=FALSE,IFERROR(VLOOKUP(3,class_ap_qual,2,FALSE),\"\"),IFERROR(VLOOKUP(4,class_ap_qual,2,FALSE),\"\"))","v":""},{"$f":"IF(N21<>\"\",VLOOKUP(N21,$C$6:$J$13,8,FALSE),\"\")","v":""}]
[null,0,{"$f":"N11","v":""},{"$f":"IFERROR(VLOOKUP($C$22,$C$6:$I$13,2,FALSE),0)","v":0},{"$f":"IFERROR(VLOOKUP($C$22,$C$6:$I$13,3,FALSE),0)","v":0},{"$f":"IFERROR(VLOOKUP($C$22,$C$6:$I$13,4,FALSE),0)","v":0},{"$f":"IFERROR(VLOOKUP($C$22,$C$6:$I$13,5,FALSE),0)","v":0},{"$f":"IFERROR(VLOOKUP($C$22,$C$6:$I$13,6,FALSE),0)","v":0},{"$f":"IFERROR(VLOOKUP($C$22,$C$6:$I$13,7,FALSE),0)","v":0},null,null,"4ème",null,{"$f":"IF(L18=FALSE,IFERROR(VLOOKUP(4,class_ap_qual,2,FALSE),\"\"),IFERROR(VLOOKUP(3,class_ap_qual,2,FALSE),\"\"))","v":""}]
[null,0,{"$f":"N8","v":""},{"$f":"IFERROR(VLOOKUP($C$23,$C$6:$I$13,2,FALSE),0)","v":0},{"$f":"IFERROR(VLOOKUP($C$23,$C$6:$I$13,3,FALSE),0)","v":0},{"$f":"IFERROR(VLOOKUP($C$23,$C$6:$I$13,4,FALSE),0)","v":0},{"$f":"IFERROR(VLOOKUP($C$23,$C$6:$I$13,5,FALSE),0)","v":0},{"$f":"IFERROR(VLOOKUP($C$23,$C$6:$I$13,6,FALSE),0)","v":0},{"$f":"IFERROR(VLOOKUP($C$23,$C$6:$I$13,7,FALSE),0)","v":0},null,null,"5ème",null,{"$f":"IFERROR(VLOOKUP(5,$B$21:$C$24,2,FALSE),\"\")","v":""}]
[null,0,{"$f":"N12","v":""},{"$f":"IFERROR(VLOOKUP($C$24,$C$6:$I$13,2,FALSE),0)","v":0},{"$f":"IFERROR(VLOOKUP($C$24,$C$6:$I$13,3,FALSE),0)","v":0},{"$f":"IFERROR(VLOOKUP($C$24,$C$6:$I$13,4,FALSE),0)","v":0},{"$f":"IFERROR(VLOOKUP($C$24,$C$6:$I$13,5,FALSE),0)","v":0},{"$f":"IFERROR(VLOOKUP($C$24,$C$6:$I$13,6,FALSE),0)","v":0},{"$f":"IFERROR(VLOOKUP($C$24,$C$6:$I$13,7,FALSE),0)","v":0},null,null,"6ème",null,{"$f":"IFERROR(VLOOKUP(6,$B$21:$C$24,2,FALSE),\"\")","v":""}]
[]
[]
[null,null,null,null,"Phase de poule",null,null,"Phase finale"]

{"sheet":"Phase finale","index":4,"n_rows":16,"n_cols":12,"rows_kept":16,"cut":false,"hidden":false,"merged":[[0,0,0,13],[3,1,4,1],[5,1,6,1],[8,10,8,12],[3,0,6,0],[4,10,4,12],[5,10,5,12],[15,4,16,5],[15,7,16,8],[7,10,7,12],[10,10,10,12],[2,0,2,1],[12,1,13,1],[8,1,9,1],[11,10,11,12],[10,1,11,1],[8,0,13,0],[13,10,13,12],[6,10,6,12],[9,10,9,12]]}
["Ranking   -   T6   -   Phase finale"]
[]
[null,null,"Joueur",null,"Points","Reprises","Série","Points de match","Moyenne"]
["1/2 finales","A",{"$f":"Classement!N16","v":""},{"$f":"C5","v":""},null,null,null,null,{"$f":"IFERROR(E4/F4,\"\")","v":""}]
[null,null,{"$f":"Classement!N22","v":""},{"$f":"C4","v":""},null,{"$f":"IF(F4<>\"\",F4,\"\")","v":""},null,{"$f":"IF(H4<>\"\",2-H4,\"\")","v":""},{"$f":"IFERROR(E5/F5,\"\")","v":""},null,"Date"]
[null,"B",{"$f":"Classement!N17","v":""},{"$f":"C7","v":""},null,null,null,null,{"$f":"IFERROR(E6/F6,\"\")","v":""},null,{"$f":"IF(Participants!B7<>\"\",Participants!B7,\"\")","v":""}]
[null,null,{"$f":"Classement!N21","v":""},{"$f":"C6","v":""},null,{"$f":"IF(F6<>\"\",F6,\"\")","v":""},null,{"$f":"IF(H6<>\"\",2-H6,\"\")","v":""},{"$f":"IFERROR(E7/F7,\"\")","v":""},null,"Catégorie"]
[null,null,null,null,null,null,null,null,null,null,{"$f":"IF(Participants!E5<>\"\",Participants!E5,\" \")","v":" "}]
["Places","1 / 2",{"$f":"IF(AND(H4<>\"\",H5<>\"\"),IF(H4>H5,C4,C5),\"\")","v":""},{"$f":"C10","v":""},null,null,null,null,{"$f":"IFERROR(E9/F9,\"\")","v":""},null,"Distance"]
[null,null,{"$f":"IF(AND(H6<>\"\",H7<>\"\"),IF(H6>H7,C6,C7),\"\")","v":""},{"$f":"C9","v":""},null,{"$f":"IF(F9<>\"\",F9,\"\")","v":""},null,{"$f":"IF(H9<>\"\",2-H9,\"\")","v":""},"",null,{"$f":"IF(Participants!G5<>\"\",Participants!G5,\" \")","v":" "}]
[null,"3 / 4",{"$f":"IF(AND(H4<>\"\",H5<>\"\"),IF(H4>H5,C5,C4),\"\")","v":""},{"$f":"C12","v":""},null,null,null,null,"",null,"Mode de jeu"]
[null,null,{"$f":"IF(AND(H6<>\"\",H7<>\"\"),IF(H6<H7,C6,C7),\"\")","v":""},{"$f":"C11","v":""},null,{"$f":"IF(F11<>\"\",F11,\"\")","v":""},null,{"$f":"IF(H11<>\"\",2-H11,\"\")","v":""},"",null,{"$f":"IF(Participants!D5<>\"\",Participants!D5,\" \")","v":" "}]
[null,"5 / 6",{"$f":"Classement!N23","v":""},{"$f":"C14","v":""},null,null,null,null,""]
[null,null,{"$f":"Classement!N24","v":""},{"$f":"C13","v":""},null,{"$f":"IF(F13<>\"\",F13,\"\")","v":""},null,{"$f":"IF(H13<>\"\",2-H13,\"\")","v":""},"",null,"Points de match"]
[null,null,null,null,null,null,null,null,null,null,"Gagné","=  2 points"]
[null,null,null,null,"Feuille de match",null,null,"Classement",null,null,"Perdu","=  0 point"]

{"sheet":"Feuille de match","index":5,"n_rows":64,"n_cols":25,"rows_kept":64,"cut":false,"hidden":false,"merged":[[11,20,11,24],[11,14,11,18],[10,2,10,5],[10,9,10,12],[7,8,7,12],[7,1,7,5],[0,0,0,12],[1,0,1,12],[42,2,42,5],[42,9,42,12],[5,8,5,12],[11,2,11,5],[5,1,5,5],[6,1,6,5],[3,1,3,5],[3,8,3,10],[4,8,4,12],[11,9,11,12],[27,9,27,12],[26,2,26,5],[26,9,26,12],[27,2,27,5],[21,2,21,4],[21,9,21,11],[27,14,27,18],[43,14,43,18],[27,20,27,24],[43,20,43,24],[43,2,43,5],[43,9,43,12],[37,2,37,4],[37,9,37,11],[53,2,53,4],[53,9,53,11],[63,0,63,3],[59,15,59,17],[58,0,58,4],[59,0,59,3],[60,0,60,3],[61,0,61,3],[62,0,62,3],[53,15,53,17],[54,15,54,17],[55,15,55,17],[58,8,58,12],[56,15,56,17],[57,15,57,17],[58,15,58,17]]}
["Fédération Française de Billard"]
["Ligue de Normandie   -   Tournoi qualificatif pour la finale de Ligue"]
[]
["Lieu de l'épreuve :",{"$f":"IF(Participants!K9<>\"\",Participants!K9,\" \")","v":" "},null,null,null,null,null,"Mode de jeu :",{"$f":"IF(Participants!D5=\"\",\"\",Participants!D5)","v":""},null,null,"Tour :",{"$f":"IF(Participants!F5=\"\",\"\",Participants!F5)","v":""}]
[null,null,null,null,null,null,null,"Catégorie :",{"$f":"IF(Participants!E5=\"\",\"\",Participants!E5)","v":""}]
[null,{"$f":"IF(Participants!K10<>\"\",Participants!K10,\" \")","v":" "},null,null,null,null,null,"Distance :",{"$f":"IF(Participants!G5=\"\",\"\",Participants!G5)","v":""},null,null,null,null,null,"Places 1 à 6 - Cases vides",null,null,{"$f":"COUNTBLANK(phase_finale)","v":6}]
[null,{"$f":"IF(Participants!K11<>\"\",Participants!K11,\" \")","v":" "}]
[null,{"$f":"IF(Participants!K12<>\"\",Participants!K12,\" \")","v":" "},null,null,null,null,null,"Date de l'épreuve :",{"$f":"IF(Participants!B7<>\"\",Participants!B7,\" \")","v":" "}]
[]
[]
["Tête de série  A",null,{"$f":"IF(Participants!D10=\"\",\"\",Participants!D10)","v":""},null,null,null,null,"Tête de série  B",null,{"$f":"IF(Participants!D14=\"\",\"\",Participants!D14)","v":""}]
[{"$f":"IF(Participants!F10=\"\",\"\",Participants!F10)","v":" "},"Club :",{"$f":"IF(Participants!E10=\"\",\"\",Participants!E10)","v":" "},null,null,null,null,{"$f":"IF(Participants!F14=\"\",\"\",Participants!F14)","v":" "},"Club :",{"$f":"IF(Participants!E14=\"\",\"\",Participants!E14)","v":" "},null,null,null,null,{"$f":"C11","v":""},null,null,null,null,null,{"$f":"J11","v":""}]
[null,"Points","Reprises","Série","Moyenne","Points de\nmatch",null,null,"Points","Reprises","Série","Moyenne","Points de\nmatch",null,{"$f":"IF(F14>1,E14,0)","v":0},{"$f":"IF(F15>1,E15,0)","v":0},{"$f":"IF(F16>1,E16,0)","v":0},{"$f":"IF(F17>1,E17,0)","v":0},{"$f":"IF(F18>1,E18,0)","v":0},null,{"$f":"IF(M14>1,L14,0)","v":0},{"$f":"IF(M15>1,L15,0)","v":0},{"$f":"IF(M16>1,L16,0)","v":0},{"$f":"IF(M17>1,L17,0)","v":0},{"$f":"IF(M18>1,L18,0)","v":0}]
[{"$f":"IF(C11='Phase de poule'!C4,'Phase de poule'!C5,      IF(C11='Phase de poule'!C5,'Phase de poule'!C4,\" \"))","v":""},{"$f":"IFERROR(VLOOKUP(C11,poule_a_t_1,2,FALSE),\"\")","v":0},{"$f":"IFERROR(VLOOKUP(C11,poule_a_t_1,3,FALSE),\"\")","v":0},{"$f":"IFERROR(VLOOKUP(C11,poule_a_t_1,4,FALSE),\"\")","v":0},{"$f":"IFERROR(VLOOKUP(C11,poule_a_t_1,6,FALSE),\"\")","v":""},{"$f":"IFERROR(VLOOKUP(C11,poule_a_t_1,5,FALSE),\"\")","v":0},null,{"$f":"IF(J11='Phase de poule'!C6,'Phase de poule'!C7,      IF(J11='Phase de poule'!C7,'Phase de poule'!C6,\" \"))","v":""},{"$f":"IFERROR(VLOOKUP(J11,poule_b_t_1,2,FALSE),\"\")","v":0},{"$f":"IFERROR(VLOOKUP(J11,poule_b_t_1,3,FALSE),\"\")","v":0},{"$f":"IFERROR(VLOOKUP(J11,poule_b_t_1,4,FALSE),\"\")","v":0},{"$f":"IFERROR(VLOOKUP(J11,poule_b_t_1,6,FALSE),\"\")","v":""},{"$f":"IFERROR(VLOOKUP(J11,poule_b_t_1,5,FALSE),\"\")","v":0}]
[{"$f":"IF(C11='Phase de poule'!C9,'Phase de poule'!C10,      IF(C11='Phase de poule'!C9,'Phase de poule'!C10,\" \"))","v":""},{"$f":"IFERROR(VLOOKUP(C11,poule_a_t_2,2,FALSE),\"\")","v":0},{"$f":"IFERROR(VLOOKUP(C11,poule_a_t_2,3,FALSE),\"\")","v":0},{"$f":"IFERROR(VLOOKUP(C11,poule_a_t_2,4,FALSE),\"\")","v":0},{"$f":"IFERROR(VLOOKUP(C11,poule_a_t_2,6,FALSE),\"\")","v":""},{"$f":"IFERROR(VLOOKUP(C11,poule_a_t_2,5,FALSE),\"\")","v":0},null,{"$f":"IF(J11='Phase de poule'!C11,'Phase de poule'!C12,      IF(J11='Phase de poule'!C12,'Phase de poule'!C11,\" \"))","v":""},{"$f":"IFERROR(VLOOKUP(J11,poule_b_t_2,2,FALSE),\"\")","v":0},{"$f":"IFERROR(VLOOKUP(J11,poule_b_t_2,3,FALSE),\"\")","v":0},{"$f":"IFERROR(VLOOKUP(J11,poule_b_t_2,4,FALSE),\"\")","v":0},{"$f":"IFERROR(VLOOKUP(J11,poule_b_t_2,6,FALSE),\"\")","v":""},{"$f":"IFERROR(VLOOKUP(J11,poule_b_t_2,5,FALSE),\"\")","v":0}]
[{"$f":"IF(C11='Phase de poule'!C14,'Phase de poule'!C15,      IF(C11='Phase de poule'!C15,'Phase de poule'!C14,\" \"))","v":""},{"$f":"IFERROR(VLOOKUP(C11,poule_a_t_3,2,FALSE),\"\")","v":0},{"$f":"IFERROR(VLOOKUP(C11,poule_a_t_3,3,FALSE),\"\")","v":0},{"$f":"IFERROR(VLOOKUP(C11,poule_a_t_3,4,FALSE),\"\")","v":0},{"$f":"IFERROR(VLOOKUP(C11,poule_a_t_3,6,FALSE),\"\")","v":""},{"$f":"IFERROR(VLOOKUP(C11,poule_a_t_3,5,FALSE),\"\")","v":0},null,{"$f":"IF(J11='Phase de poule'!C16,'Phase de poule'!C17,      IF(J11='Phase de poule'!C17,'Phase de poule'!C16,\" \"))","v":""},{"$f":"IFERROR(VLOOKUP(J11,poule_b_t_3,2,FALSE),\"\")","v":0},{"$f":"IFERROR(VLOOKUP(J11,poule_b_t_3,3,FALSE),\"\")","v":0},{"$f":"IFERROR(VLOOKUP(J11,poule_b_t_3,4,FALSE),\"\")","v":0},{"$f":"IFERROR(VLOOKUP(J11,poule_b_t_3,6,FALSE),\"\")","v":""},{"$f":"IFERROR(VLOOKUP(J11,poule_b_t_3,5,FALSE),\"\")","v":0}]
[{"$f":"IFERROR(VLOOKUP(C11,tour_num_4,2,FALSE),\"\")","v":""},{"$f":"IFERROR(VLOOKUP(C11,tour_num_4,3,FALSE),\"\")","v":0},{"$f":"IFERROR(VLOOKUP(C11,tour_num_4,4,FALSE),\"\")","v":0},{"$f":"IFERROR(VLOOKUP(C11,tour_num_4,5,FALSE),\"\")","v":0},{"$f":"IFERROR(VLOOKUP(C11,tour_num_4,7,FALSE),\"\")","v":""},{"$f":"IFERROR(VLOOKUP(C11,tour_num_4,6,FALSE),\"\")","v":0},null,{"$f":"IFERROR(VLOOKUP(J11,tour_num_4,2,FALSE),\"\")","v":""},{"$f":"IFERROR(VLOOKUP(J11,tour_num_4,3,FALSE),\"\")","v":0},{"$f":"IFERROR(VLOOKUP(J11,tour_num_4,4,FALSE),\"\")","v":0},{"$f":"IFERROR(VLOOKUP(J11,tour_num_4,5,FALSE),\"\")","v":0},{"$f":"IFERROR(VLOOKUP(J11,tour_num_4,7,FALSE),\"\")","v":""},{"$f":"IFERROR(VLOOKUP(J11,tour_num_4,6,FALSE),\"\")","v":0}]
[{"$f":"IFERROR(VLOOKUP(C11,tour_num_5,2,FALSE),\"\")","v":""},{"$f":"IFERROR(VLOOKUP(C11,tour_num_5,3,FALSE),\"\")","v":0},{"$f":"IFERROR(VLOOKUP(C11,tour_num_5,4,FALSE),\"\")","v":0},{"$f":"IFERROR(VLOOKUP(C11,tour_num_5,5,FALSE),\"\")","v":0},{"$f":"IFERROR(VLOOKUP(C11,tour_num_5,7,FALSE),\"\")","v":""},{"$f":"IFERROR(VLOOKUP(C11,tour_num_5,6,FALSE),\"\")","v":0},null,{"$f":"IFERROR(VLOOKUP(J11,tour_num_5,2,FALSE),\"\")","v":""},{"$f":"IFERROR(VLOOKUP(J11,tour_num_5,3,FALSE),\"\")","v":0},{"$f":"IFERROR(VLOOKUP(J11,tour_num_5,4,FALSE),\"\")","v":0},{"$f":"IFERROR(VLOOKUP(J11,tour_num_5,5,FALSE),\"\")","v":0},{"$f":"IFERROR(VLOOKUP(J11,tour_num_5,7,FALSE),\"\")","v":""},{"$f":"IFERROR(VLOOKUP(J11,tour_num_5,6,FALSE),\"\")","v":0}]
[]
["Total :   ",{"$f":"SUM(B14:B18)","v":0},{"$f":"SUM(C14:C18)","v":0},{"$f":"MAX(D14:D18)","v":0},{"$f":"IF(C20>0,B20/C20,0)","v":0},{"$f":"SUM(F14:F18)","v":0},null,"Total :   ",{"$f":"SUM(I14:I18)","v":0},{"$f":"SUM(J14:J18)","v":0},{"$f":"MAX(K14:K18)","v":0},{"$f":"IF(J20>0,I20/J20,0)","v":0},{"$f":"SUM(M14:M18)","v":0}]
[]
["Pts de classement acquis :",{"$f":"IF(Participants!G10=\"\",\"\",Participants!G10)","v":""},"Moyenne particulière :",null,null,{"$f":"MAX(O13:S13)","v":0},null,"Pts de classement acquis :",{"$f":"IF(Participants!G14=\"\",\"\",Participants!G14)","v":""},"Moyenne particulière :",null,null,{"$f":"MAX(U13:Y13)","v":0}]
["Points de match :",{"$f":"F20","v":0},"Rang:",{"$f":"IF($R$6=0,IFERROR(VLOOKUP(C11,classement_final,4,FALSE),\"\"),0)","v":0},null,null,null,"Points de match :",{"$f":"M20","v":0},"Rang :",{"$f":"IF($R$6=0,IFERROR(VLOOKUP(J11,classement_final,4,FALSE),\"\"),0)","v":0}]
["Points de ranking obtenus :",{"$f":"IF($R$6=0,IFERROR(VLOOKUP(C11,classement_final,5,FALSE),\"\"),0)","v":0},"Signature du joueur",null,null,null,null,"Points de ranking obtenus :",{"$f":"IF($R$6=0,IFERROR(VLOOKUP(J11,classement_final,5,FALSE),\"\"),0)","v":0},"Signature du joueur"]
["Total des pts de classement :",{"$f":"SUM(B22,B24,F20)","v":0},null,null,null,null,null,"Total des pts de classement :",{"$f":"SUM(I22,I24,M20)","v":0}]
[]
["Joueur  N°A2",null,{"$f":"IF(Participants!D11=\"\",\"\",Participants!D11)","v":""},null,null,null,null,"Joueur  N°B2",null,{"$f":"IF(Participants!D15=\"\",\"\",Participants!D15)","v":""}]
[{"$f":"IF(Participants!F11=\"\",\"\",Participants!F11)","v":" "},"Club :",{"$f":"IF(Participants!E11=\"\",\"\",Participants!E11)","v":" "},null,null,null,null,{"$f":"IF(Participants!F15=\"\",\"\",Participants!F15)","v":" "},"Club :",{"$f":"IF(Participants!E15=\"\",\"\",Participants!E15)","v":" "},null,null,null,null,{"$f":"C27","v":""},null,null,null,null,null,{"$f":"J27","v":""}]
[null,"Points","Reprises","Série","Moyenne","Points de\nmatch",null,null,"Points","Reprises","Série","Moyenne","Points de\nmatch",null,{"$f":"IF(F30>1,E30,0)","v":0},{"$f":"IF(F31>1,E31,0)","v":0},{"$f":"IF(F32>1,E32,0)","v":0},{"$f":"IF(F33>1,E33,0)","v":0},{"$f":"IF(F34>1,E34,0)","v":0},null,{"$f":"IF(M30>1,L30,0)","v":0},{"$f":"IF(M31>1,L31,0)","v":0},{"$f":"IF(M32>1,L32,0)","v":0},{"$f":"IF(M33>1,L33,0)","v":0},{"$f":"IF(M34>1,L34,0)","v":0}]
[{"$f":"IF(C27='Phase de poule'!C4,'Phase de poule'!C5,      IF(C27='Phase de poule'!C5,'Phase de poule'!C4,\" \"))","v":""},{"$f":"IFERROR(VLOOKUP(C27,poule_a_t_1,2,FALSE),\"\")","v":0},{"$f":"IFERROR(VLOOKUP(C27,poule_a_t_1,3,FALSE),\"\")","v":0},{"$f":"IFERROR(VLOOKUP(C27,poule_a_t_1,4,FALSE),\"\")","v":0},{"$f":"IFERROR(VLOOKUP(C27,poule_a_t_1,6,FALSE),\"\")","v":""},{"$f":"IFERROR(VLOOKUP(C27,poule_a_t_1,5,FALSE),\"\")","v":0},null,{"$f":"IF(J27='Phase de poule'!C6,'Phase de poule'!C7,      IF(J27='Phase de poule'!C7,'Phase de poule'!C6,\" \"))","v":""},{"$f":"IFERROR(VLOOKUP(J27,poule_b_t_1,2,FALSE),\"\")","v":0},{"$f":"IFERROR(VLOOKUP(J27,poule_b_t_1,3,FALSE),\"\")","v":0},{"$f":"IFERROR(VLOOKUP(J27,poule_b_t_1,4,FALSE),\"\")","v":0},{"$f":"IFERROR(VLOOKUP(J27,poule_b_t_1,6,FALSE),\"\")","v":""},{"$f":"IFERROR(VLOOKUP(J27,poule_b_t_1,5,FALSE),\"\")","v":0}]
[{"$f":"IF(C27='Phase de poule'!C9,'Phase de poule'!C10,      IF(C27='Phase de poule'!C10,'Phase de poule'!C9,\" \"))","v":""},{"$f":"IFERROR(VLOOKUP(C27,poule_a_t_2,2,FALSE),\"\")","v":0},{"$f":"IFERROR(VLOOKUP(C27,poule_a_t_2,3,FALSE),\"\")","v":0},{"$f":"IFERROR(VLOOKUP(C27,poule_a_t_2,4,FALSE),\"\")","v":0},{"$f":"IFERROR(VLOOKUP(C27,poule_a_t_2,6,FALSE),\"\")","v":""},{"$f":"IFERROR(VLOOKUP(C27,poule_a_t_2,5,FALSE),\"\")","v":0},null,{"$f":"IF(J27='Phase de poule'!C11,'Phase de poule'!C12,      IF(J27='Phase de poule'!C12,'Phase de poule'!C11,\" \"))","v":""},{"$f":"IFERROR(VLOOKUP(J27,poule_b_t_2,2,FALSE),\"\")","v":0},{"$f":"IFERROR(VLOOKUP(J27,poule_b_t_2,3,FALSE),\"\")","v":0},{"$f":"IFERROR(VLOOKUP(J27,poule_b_t_2,4,FALSE),\"\")","v":0},{"$f":"IFERROR(VLOOKUP(J27,poule_b_t_2,6,FALSE),\"\")","v":""},{"$f":"IFERROR(VLOOKUP(J27,poule_b_t_2,5,FALSE),\"\")","v":0}]
[{"$f":"IF(C27='Phase de poule'!C14,'Phase de poule'!C15,      IF(C27='Phase de poule'!C15,'Phase de poule'!C14,\" \"))","v":""},{"$f":"IFERROR(VLOOKUP(C27,poule_a_t_3,2,FALSE),\"\")","v":0},{"$f":"IFERROR(VLOOKUP(C27,poule_a_t_3,3,FALSE),\"\")","v":0},{"$f":"IFERROR(VLOOKUP(C27,poule_a_t_3,4,FALSE),\"\")","v":0},{"$f":"IFERROR(VLOOKUP(C27,poule_a_t_3,6,FALSE),\"\")","v":""},{"$f":"IFERROR(VLOOKUP(C27,poule_a_t_3,5,FALSE),\"\")","v":0},null,{"$f":"IF(J27='Phase de poule'!C16,'Phase de poule'!C17,      IF(J27='Phase de poule'!C17,'Phase de poule'!C16,\" \"))","v":""},{"$f":"IFERROR(VLOOKUP(J27,poule_b_t_3,2,FALSE),\"\")","v":0},{"$f":"IFERROR(VLOOKUP(J27,poule_b_t_3,3,FALSE),\"\")","v":0},{"$f":"IFERROR(VLOOKUP(J27,poule_b_t_3,4,FALSE),\"\")","v":0},{"$f":"IFERROR(VLOOKUP(J27,poule_b_t_3,6,FALSE),\"\")","v":""},{"$f":"IFERROR(VLOOKUP(J27,poule_b_t_3,5,FALSE),\"\")","v":0}]
[{"$f":"IFERROR(VLOOKUP(C27,tour_num_4,2,FALSE),\"\")","v":""},{"$f":"IFERROR(VLOOKUP(C27,tour_num_4,3,FALSE),\"\")","v":0},{"$f":"IFERROR(VLOOKUP(C27,tour_num_4,4,FALSE),\"\")","v":0},{"$f":"IFERROR(VLOOKUP(C27,tour_num_4,5,FALSE),\"\")","v":0},{"$f":"IFERROR(VLOOKUP(C27,tour_num_4,7,FALSE),\"\")","v":""},{"$f":"IFERROR(VLOOKUP(C27,tour_num_4,6,FALSE),\"\")","v":0},null,{"$f":"IFERROR(VLOOKUP(J27,tour_num_4,2,FALSE),\"\")","v":""},{"$f":"IFERROR(VLOOKUP(J27,tour_num_4,3,FALSE),\"\")","v":0},{"$f":"IFERROR(VLOOKUP(J27,tour_num_4,4,FALSE),\"\")","v":0},{"$f":"IFERROR(VLOOKUP(J27,tour_num_4,5,FALSE),\"\")","v":0},{"$f":"IFERROR(VLOOKUP(J27,tour_num_4,7,FALSE),\"\")","v":""},{"$f":"IFERROR(VLOOKUP(J27,tour_num_4,6,FALSE),\"\")","v":0}]
[{"$f":"IFERROR(VLOOKUP(C27,tour_num_5,2,FALSE),\"\")","v":""},{"$f":"IFERROR(VLOOKUP(C27,tour_num_5,3,FALSE),\"\")","v":0},{"$f":"IFERROR(VLOOKUP(C27,tour_num_5,4,FALSE),\"\")","v":0},{"$f":"IFERROR(VLOOKUP(C27,tour_num_5,5,FALSE),\"\")","v":0},{"$f":"IFERROR(VLOOKUP(C27,tour_num_5,7,FALSE),\"\")","v":""},{"$f":"IFERROR(VLOOKUP(C27,tour_num_5,6,FALSE),\"\")","v":0},null,{"$f":"IFERROR(VLOOKUP(J27,tour_num_5,2,FALSE),\"\")","v":""},{"$f":"IFERROR(VLOOKUP(J27,tour_num_5,3,FALSE),\"\")","v":0},{"$f":"IFERROR(VLOOKUP(J27,tour_num_5,4,FALSE),\"\")","v":0},{"$f":"IFERROR(VLOOKUP(J27,tour_num_5,5,FALSE),\"\")","v":0},{"$f":"IFERROR(VLOOKUP(J27,tour_num_5,7,FALSE),\"\")","v":""},{"$f":"IFERROR(VLOOKUP(J27,tour_num_5,6,FALSE),\"\")","v":0}]
[]
["Total :   ",{"$f":"SUM(B30:B34)","v":0},{"$f":"SUM(C30:C34)","v":0},{"$f":"MAX(D30:D34)","v":0},{"$f":"IF(C36>0,B36/C36,0)","v":0},{"$f":"SUM(F30:F34)","v":0},null,"Total :   ",{"$f":"SUM(I30:I34)","v":0},{"$f":"SUM(J30:J34)","v":0},{"$f":"MAX(K30:K34)","v":0},{"$f":"IF(J36>0,I36/J36,0)","v":0},{"$f":"SUM(M30:M34)","v":0}]
[]
["Pts de classement acquis :",{"$f":"IF(Participants!G11=\"\",\"\",Participants!G11)","v":""},"Moyenne particulière :",null,null,{"$f":"MAX(O29:S29)","v":0},null,"Pts de classement acquis :",{"$f":"IF(Participants!G15=\"\",\"\",Participants!G15)","v":""},"Moyenne particulière :",null,null,{"$f":"MAX(U29:Y29)","v":0}]
["Points de match :",{"$f":"F36","v":0},"Rang :",{"$f":"IF($R$6=0,IFERROR(VLOOKUP(C27,classement_final,4,FALSE),\"\"),0)","v":0},null,null,null,"Points de match :",{"$f":"M36","v":0},"Rang :",{"$f":"IF($R$6=0,IFERROR(VLOOKUP(J27,classement_final,4,FALSE),\"\"),0)","v":0}]
["Points de ranking obtenus :",{"$f":"IF($R$6=0,IFERROR(VLOOKUP(C27,classement_final,5,FALSE),\"\"),0)","v":0},"Signature du joueur",null,null,null,null,"Points de ranking obtenus :",{"$f":"IF($R$6=0,IFERROR(VLOOKUP(J27,classement_final,5,FALSE),\"\"),0)","v":0},"Signature du joueur"]
["Total des pts de classement :",{"$f":"SUM(B38,B40,F36)","v":0},null,null,null,null,null,"Total des pts de classement :",{"$f":"SUM(I38,I40,M36)","v":0}]
[]
["Joueur  N°A3",null,{"$f":"IF(Participants!D12=\"\",\"\",Participants!D12)","v":""},null,null,null,null,"Joueur  N°B3",null,{"$f":"IF(Participants!D16=\"\",\"\",Participants!D16)","v":""}]
[{"$f":"IF(Participants!F12=\"\",\"\",Participants!F12)","v":" "},"Club :",{"$f":"IF(Participants!E12=\"\",\"\",Participants!E12)","v":" "},null,null,null,null,{"$f":"IF(Participants!F16=\"\",\"\",Participants!F16)","v":" "},"Club :",{"$f":"IF(Participants!E16=\"\",\"\",Participants!E16)","v":" "},null,null,null,null,{"$f":"C43","v":""},null,null,null,null,null,{"$f":"J43","v":""}]
[null,"Points","Reprises","Série","Moyenne","Points de\nmatch",null,null,"Points","Reprises","Série","Moyenne","Points de\nmatch",null,{"$f":"IF(F46>1,E46,0)","v":0},{"$f":"IF(F47>1,E47,0)","v":0},{"$f":"IF(F48>1,E48,0)","v":0},{"$f":"IF(F49>1,E49,0)","v":0},{"$f":"IF(F50>1,E50,0)","v":0},null,{"$f":"IF(M46>1,L46,0)","v":0},{"$f":"IF(M47>1,L47,0)","v":0},{"$f":"IF(M48>1,L48,0)","v":0},{"$f":"IF(M49>1,L49,0)","v":0},{"$f":"IF(M50>1,L50,0)","v":0}]
[{"$f":"IF(C43='Phase de poule'!C4,'Phase de poule'!C5,      IF(C43='Phase de poule'!C5,'Phase de poule'!C4,\" \"))","v":""},{"$f":"IFERROR(VLOOKUP(C43,poule_a_t_1,2,FALSE),\"\")","v":0},{"$f":"IFERROR(VLOOKUP(C43,poule_a_t_1,3,FALSE),\"\")","v":0},{"$f":"IFERROR(VLOOKUP(C43,poule_a_t_1,4,FALSE),\"\")","v":0},{"$f":"IFERROR(VLOOKUP(C43,poule_a_t_1,6,FALSE),\"\")","v":""},{"$f":"IFERROR(VLOOKUP(C43,poule_a_t_1,5,FALSE),\"\")","v":0},null,{"$f":"IF(J43='Phase de poule'!C6,'Phase de poule'!C7,      IF(J43='Phase de poule'!C7,'Phase de poule'!C6,\" \"))","v":""},{"$f":"IFERROR(VLOOKUP(J43,poule_b_t_1,2,FALSE),\"\")","v":0},{"$f":"IFERROR(VLOOKUP(J43,poule_b_t_1,3,FALSE),\"\")","v":0},{"$f":"IFERROR(VLOOKUP(J43,poule_b_t_1,4,FALSE),\"\")","v":0},{"$f":"IFERROR(VLOOKUP(J43,poule_b_t_1,6,FALSE),\"\")","v":""},{"$f":"IFERROR(VLOOKUP(J43,poule_b_t_1,5,FALSE),\"\")","v":0}]
[{"$f":"IF(C43='Phase de poule'!C9,'Phase de poule'!C10,      IF(C43='Phase de poule'!C10,'Phase de poule'!C9,\" \"))","v":""},{"$f":"IFERROR(VLOOKUP(C43,poule_a_t_2,2,FALSE),\"\")","v":0},{"$f":"IFERROR(VLOOKUP(C43,poule_a_t_2,3,FALSE),\"\")","v":0},{"$f":"IFERROR(VLOOKUP(C43,poule_a_t_2,4,FALSE),\"\")","v":0},{"$f":"IFERROR(VLOOKUP(C43,poule_a_t_2,6,FALSE),\"\")","v":""},{"$f":"IFERROR(VLOOKUP(C43,poule_a_t_2,5,FALSE),\"\")","v":0},null,{"$f":"IF(J43='Phase de poule'!C11,'Phase de poule'!C12,      IF(J43='Phase de poule'!C12,'Phase de poule'!C11,\" \"))","v":""},{"$f":"IFERROR(VLOOKUP(J43,poule_b_t_2,2,FALSE),\"\")","v":0},{"$f":"IFERROR(VLOOKUP(J43,poule_b_t_2,3,FALSE),\"\")","v":0},{"$f":"IFERROR(VLOOKUP(J43,poule_b_t_2,4,FALSE),\"\")","v":0},{"$f":"IFERROR(VLOOKUP(J43,poule_b_t_2,6,FALSE),\"\")","v":""},{"$f":"IFERROR(VLOOKUP(J43,poule_b_t_2,5,FALSE),\"\")","v":0}]
[{"$f":"IF(C43='Phase de poule'!C14,'Phase de poule'!C15,      IF(C43='Phase de poule'!C15,'Phase de poule'!C14,\" \"))","v":""},{"$f":"IFERROR(VLOOKUP(C43,poule_a_t_3,2,FALSE),\"\")","v":0},{"$f":"IFERROR(VLOOKUP(C43,poule_a_t_3,3,FALSE),\"\")","v":0},{"$f":"IFERROR(VLOOKUP(C43,poule_a_t_3,4,FALSE),\"\")","v":0},{"$f":"IFERROR(VLOOKUP(C43,poule_a_t_3,6,FALSE),\"\")","v":""},{"$f":"IFERROR(VLOOKUP(C43,poule_a_t_3,5,FALSE),\"\")","v":0},null,{"$f":"IF(J43='Phase de poule'!C16,'Phase de poule'!C17,      IF(J43='Phase de poule'!C17,'Phase de poule'!C16,\" \"))","v":""},{"$f":"IFERROR(VLOOKUP(J43,poule_b_t_3,2,FALSE),\"\")","v":0},{"$f":"IFERROR(VLOOKUP(J43,poule_b_t_3,3,FALSE),\"\")","v":0},{"$f":"IFERROR(VLOOKUP(J43,poule_b_t_3,4,FALSE),\"\")","v":0},{"$f":"IFERROR(VLOOKUP(J43,poule_b_t_3,6,FALSE),\"\")","v":""},{"$f":"IFERROR(VLOOKUP(J43,poule_b_t_3,5,FALSE),\"\")","v":0}]
[{"$f":"IFERROR(VLOOKUP(C43,tour_num_4,2,FALSE),\"\")","v":""},{"$f":"IFERROR(VLOOKUP(C43,tour_num_4,3,FALSE),\"\")","v":0},{"$f":"IFERROR(VLOOKUP(C43,tour_num_4,4,FALSE),\"\")","v":0},{"$f":"IFERROR(VLOOKUP(C43,tour_num_4,5,FALSE),\"\")","v":0},{"$f":"IFERROR(VLOOKUP(C43,tour_num_4,7,FALSE),\"\")","v":""},{"$f":"IFERROR(VLOOKUP(C43,tour_num_4,6,FALSE),\"\")","v":0},null,{"$f":"IFERROR(VLOOKUP(J43,tour_num_4,2,FALSE),\"\")","v":""},{"$f":"IFERROR(VLOOKUP(J43,tour_num_4,3,FALSE),\"\")","v":0},{"$f":"IFERROR(VLOOKUP(J43,tour_num_4,4,FALSE),\"\")","v":0},{"$f":"IFERROR(VLOOKUP(J43,tour_num_4,5,FALSE),\"\")","v":0},{"$f":"IFERROR(VLOOKUP(J43,tour_num_4,7,FALSE),\"\")","v":""},{"$f":"IFERROR(VLOOKUP(J43,tour_num_4,6,FALSE),\"\")","v":0}]
[{"$f":"IFERROR(VLOOKUP(C43,tour_num_5,2,FALSE),\"\")","v":""},{"$f":"IFERROR(VLOOKUP(C43,tour_num_5,3,FALSE),\"\")","v":0},{"$f":"IFERROR(VLOOKUP(C43,tour_num_5,4,FALSE),\"\")","v":0},{"$f":"IFERROR(VLOOKUP(C43,tour_num_5,5,FALSE),\"\")","v":0},{"$f":"IFERROR(VLOOKUP(C43,tour_num_5,7,FALSE),\"\")","v":""},{"$f":"IFERROR(VLOOKUP(C43,tour_num_5,6,FALSE),\"\")","v":0},null,{"$f":"IFERROR(VLOOKUP(J43,tour_num_5,2,FALSE),\"\")","v":""},{"$f":"IFERROR(VLOOKUP(J43,tour_num_5,3,FALSE),\"\")","v":0},{"$f":"IFERROR(VLOOKUP(J43,tour_num_5,4,FALSE),\"\")","v":0},{"$f":"IFERROR(VLOOKUP(J43,tour_num_5,5,FALSE),\"\")","v":0},{"$f":"IFERROR(VLOOKUP(J43,tour_num_5,7,FALSE),\"\")","v":""},{"$f":"IFERROR(VLOOKUP(J43,tour_num_5,6,FALSE),\"\")","v":0}]
[]
["Total :   ",{"$f":"SUM(B46:B50)","v":0},{"$f":"SUM(C46:C50)","v":0},{"$f":"MAX(D46:D50)","v":0},{"$f":"IF(C52>0,B52/C52,0)","v":0},{"$f":"SUM(F46:F50)","v":0},null,"Total :   ",{"$f":"SUM(I46:I50)","v":0},{"$f":"SUM(J46:J50)","v":0},{"$f":"MAX(K46:K50)","v":0},{"$f":"IF(J52>0,I52/J52,0)","v":0},{"$f":"SUM(M46:M50)","v":0}]
[]
["Pts de classement acquis :",{"$f":"IF(Participants!G12=\"\",\"\",Participants!G12)","v":""},"Moyenne particulière :",null,null,{"$f":"MAX(O45:S45)","v":0},null,"Pts de classement acquis :",{"$f":"IF(Participants!G16=\"\",\"\",Participants!G16)","v":""},"Moyenne particulière :",null,null,{"$f":"MAX(U45:Y45)","v":0},null,null,"Joueur",null,null,"Rang","Points"]
["Points de match :",{"$f":"F52","v":0},"Rang :",{"$f":"IF($R$6=0,IFERROR(VLOOKUP(C43,classement_final,4,FALSE),\"\"),0)","v":0},null,null,null,"Points de match :",{"$f":"M52","v":0},"Rang :",{"$f":"IF($R$6=0,IFERROR(VLOOKUP(J43,classement_final,4,FALSE),\"\"),0)","v":0},null,null,null,null,{"$f":"IF('Phase finale'!H9>'Phase finale'!H10,'Phase finale'!C9,'Phase finale'!D9)","v":""},null,null,1,22]
["Points de ranking obtenus :",{"$f":"IF($R$6=0,IFERROR(VLOOKUP(C43,classement_final,5,FALSE),\"\"),0)","v":0},"Signature du joueur",null,null,null,null,"Points de ranking obtenus :",{"$f":"IF($R$6=0,IFERROR(VLOOKUP(J43,classement_final,5,FALSE),\"\"),0)","v":0},"Signature du joueur",null,null,null,null,null,{"$f":"IF('Phase finale'!H10>'Phase finale'!H9,'Phase finale'!C9,'Phase finale'!D9)","v":""},null,null,2,19]
["Total des pts de classement :",{"$f":"SUM(B54,B56,F52)","v":0},null,null,null,null,null,"Total des pts de classement :",{"$f":"SUM(I54,I56,M52)","v":0},null,null,null,null,null,null,{"$f":"IF('Phase finale'!H11>'Phase finale'!H12,'Phase finale'!C11,'Phase finale'!D11)","v":""},null,null,3,16]
[null,null,null,null,null,null,null,null,null,null,null,null,null,null,null,{"$f":"IF('Phase finale'!H12>'Phase finale'!H11,'Phase finale'!D12,'Phase finale'!C12)","v":""},null,null,4,14]
["Performances du tournoi",null,null,null,null,null,null,"Directeur de jeu",{"$f":"IF(Participants!B5=\"\",\"\",Participants!B5)","v":""},null,null,null,null,null,null,{"$f":"IF('Phase finale'!H13>'Phase finale'!H14,'Phase finale'!C13,'Phase finale'!D13)","v":""},null,null,5,12]
["Points réalisés",null,null,null,{"$f":"SUM(B20,I20,B36,I36,B52,I52)","v":0},null,null,null,null,null,null,null,null,null,null,{"$f":"IF('Phase finale'!H14>'Phase finale'!H13,'Phase finale'!D14,'Phase finale'!C14)","v":""},null,null,6,11]
["Reprises effectuées",null,null,null,{"$f":"SUM(C20,J20,C36,J36,C52,J52)","v":0},null,null,"Signature :"]
["Meilleure série",null,null,null,{"$f":"MAX(D20,K20,D36,K36,D52,K52)","v":0}]
["Meilleure moyenne particulière",null,null,null,{"$f":"MAX(F22,M22,F38,M38,F54,M54)","v":0}]
["Moyenne générale",null,null,null,{"$f":"IF(E61>0,E60/E61,0)","v":0}]

{"sheet":"Saisie FFB","index":6,"n_rows":22,"n_cols":13,"rows_kept":22,"cut":false,"hidden":false,"merged":[[4,1,4,2],[4,3,4,7],[9,1,9,6],[9,7,9,12],[5,1,5,2],[5,3,5,7],[6,1,6,2],[6,3,6,7],[7,1,7,2],[7,3,7,7],[0,0,0,12],[2,1,2,2],[2,3,2,7],[3,1,3,2],[3,3,3,7]]}
["Tableau d'aide à la saisie des résultats sur les sites FFB"]
["Compétition"]
[null,"Lieu :   ",null,{"$f":"Participants!K9","v":0}]
[null,"Date :   ",null,{"$f":"Participants!B7","v":"00:00:00"}]
[null,"Mode de jeu :   ",null,{"$f":"Participants!D5","v":0}]
[null,"Catégorie :   ",null,{"$f":"Participants!E5","v":0}]
[null,"Tour :   ",null,{"$f":"Participants!F5","v":0}]
[null,"Format billard :   ",null,{"$f":"Participants!E7","v":0}]
[]
[null,"Joueur 1",null,null,null,null,null,"Joueur 2"]
["N° match","Nom","Licence","Points","Reprises","Série","Points de\nmatch","Nom","Licence","Points","Reprises","Série","Points de\nmatch"]
[1,{"$f":"'Phase de poule'!C4","v":""},{"$f":"IFERROR(VLOOKUP(B12,info_joueur,3,FALSE),\"\")","v":""},{"$f":"IF('Phase de poule'!D4<>\"\",'Phase de poule'!D4,\"\")","v":""},{"$f":"IF('Phase de poule'!E4<>\"\",'Phase de poule'!E4,\"\")","v":""},{"$f":"IF('Phase de poule'!F4<>\"\",'Phase de poule'!F4,\"\")","v":""},{"$f":"IF('Phase de poule'!G4<>\"\",'Phase de poule'!G4,\"\")","v":""},{"$f":"'Phase de poule'!C5","v":""},{"$f":"IFERROR(VLOOKUP(H12,info_joueur,3,FALSE),\"\")","v":""},{"$f":"IF('Phase de poule'!D5<>\"\",'Phase de poule'!D5,\"\")","v":""},{"$f":"IF('Phase de poule'!E5<>\"\",'Phase de poule'!E5,\"\")","v":""},{"$f":"IF('Phase de poule'!F5<>\"\",'Phase de poule'!F5,\"\")","v":""},{"$f":"IF('Phase de poule'!G5<>\"\",'Phase de poule'!G5,\"\")","v":""}]
[2,{"$f":"'Phase de poule'!C6","v":""},"",{"$f":"IF('Phase de poule'!D6<>\"\",'Phase de poule'!D6,\"\")","v":""},{"$f":"IF('Phase de poule'!E6<>\"\",'Phase de poule'!E6,\"\")","v":""},{"$f":"IF('Phase de poule'!F6<>\"\",'Phase de poule'!F6,\"\")","v":""},{"$f":"IF('Phase de poule'!G6<>\"\",'Phase de poule'!G6,\"\")","v":""},{"$f":"'Phase de poule'!C7","v":""},"",{"$f":"IF('Phase de poule'!D7<>\"\",'Phase de poule'!D7,\"\")","v":""},{"$f":"IF('Phase de poule'!E7<>\"\",'Phase de poule'!E7,\"\")","v":""},{"$f":"IF('Phase de poule'!F7<>\"\",'Phase de poule'!F7,\"\")","v":""},{"$f":"IF('Phase de poule'!G7<>\"\",'Phase de poule'!G7,\"\")","v":""}]
[3,{"$f":"'Phase de poule'!C9","v":""},"",{"$f":"IF('Phase de poule'!D9<>\"\",'Phase de poule'!D9,\"\")","v":""},{"$f":"IF('Phase de poule'!E9<>\"\",'Phase de poule'!E9,\"\")","v":""},{"$f":"IF('Phase de poule'!F9<>\"\",'Phase de poule'!F9,\"\")","v":""},{"$f":"IF('Phase de poule'!G9<>\"\",'Phase de poule'!G9,\"\")","v":""},{"$f":"'Phase de poule'!C10","v":""},"",{"$f":"IF('Phase de poule'!D10<>\"\",'Phase de poule'!D10,\"\")","v":""},{"$f":"IF('Phase de poule'!E10<>\"\",'Phase de poule'!E10,\"\")","v":""},{"$f":"IF('Phase de poule'!F10<>\"\",'Phase de poule'!F10,\"\")","v":""},{"$f":"IF('Phase de poule'!G10<>\"\",'Phase de poule'!G10,\"\")","v":""}]
[4,{"$f":"'Phase de poule'!C11","v":""},"",{"$f":"IF('Phase de poule'!D11<>\"\",'Phase de poule'!D11,\"\")","v":""},{"$f":"IF('Phase de poule'!E11<>\"\",'Phase de poule'!E11,\"\")","v":""},{"$f":"IF('Phase de poule'!F11<>\"\",'Phase de poule'!F11,\"\")","v":""},{"$f":"IF('Phase de poule'!G11<>\"\",'Phase de poule'!G11,\"\")","v":""},{"$f":"'Phase de poule'!C12","v":""},"",{"$f":"IF('Phase de poule'!D12<>\"\",'Phase de poule'!D12,\"\")","v":""},{"$f":"IF('Phase de poule'!E12<>\"\",'Phase de poule'!E12,\"\")","v":""},{"$f":"IF('Phase de poule'!F12<>\"\",'Phase de poule'!F12,\"\")","v":""},{"$f":"IF('Phase de poule'!G12<>\"\",'Phase de poule'!G12,\"\")","v":""}]
[5,{"$f":"'Phase de poule'!C14","v":""},"",{"$f":"IF('Phase de poule'!D14<>\"\",'Phase de poule'!D14,\"\")","v":""},{"$f":"IF('Phase de poule'!E14<>\"\",'Phase de poule'!E14,\"\")","v":""},{"$f":"IF('Phase de poule'!F14<>\"\",'Phase de poule'!F14,\"\")","v":""},{"$f":"IF('Phase de poule'!G14<>\"\",'Phase de poule'!G14,\"\")","v":""},{"$f":"'Phase de poule'!C15","v":""},"",{"$f":"IF('Phase de poule'!D15<>\"\",'Phase de poule'!D15,\"\")","v":""},{"$f":"IF('Phase de poule'!E15<>\"\",'Phase de poule'!E15,\"\")","v":""},{"$f":"IF('Phase de poule'!F15<>\"\",'Phase de poule'!F15,\"\")","v":""},{"$f":"IF('Phase de poule'!G15<>\"\",'Phase de poule'!G15,\"\")","v":""}]
[6,{"$f":"'Phase de poule'!C16","v":""},"",{"$f":"IF('Phase de poule'!D16<>\"\",'Phase de poule'!D16,\"\")","v":""},{"$f":"IF('Phase de poule'!E16<>\"\",'Phase de poule'!E16,\"\")","v":""},{"$f":"IF('Phase de poule'!F16<>\"\",'Phase de poule'!F16,\"\")","v":""},{"$f":"IF('Phase de poule'!G16<>\"\",'Phase de poule'!G16,\"\")","v":""},{"$f":"'Phase de poule'!C17","v":""},"",{"$f":"IF('Phase de poule'!D17<>\"\",'Phase de poule'!D17,\"\")","v":""},{"$f":"IF('Phase de poule'!E17<>\"\",'Phase de poule'!E17,\"\")","v":""},{"$f":"IF('Phase de poule'!F17<>\"\",'Phase de poule'!F17,\"\")","v":""},{"$f":"IF('Phase de poule'!G17<>\"\",'Phase de poule'!G17,\"\")","v":""}]
[7,{"$f":"'Phase finale'!C4","v":""},"",{"$f":"IF('Phase finale'!E4<>\"\",'Phase finale'!E4,\"\")","v":""},{"$f":"IF('Phase finale'!F4<>\"\",'Phase finale'!F4,\"\")","v":""},{"$f":"IF('Phase finale'!G4<>\"\",'Phase finale'!G4,\"\")","v":""},{"$f":"IF('Phase finale'!H4<>\"\",'Phase finale'!H4,\"\")","v":""},{"$f":"'Phase finale'!C5","v":""},"",{"$f":"IF('Phase finale'!E5<>\"\",'Phase finale'!E5,\"\")","v":""},{"$f":"IF('Phase finale'!F5<>\"\",'Phase finale'!F5,\"\")","v":""},{"$f":"IF('Phase finale'!G5<>\"\",'Phase finale'!G5,\"\")","v":""},{"$f":"IF('Phase finale'!H5<>\"\",'Phase finale'!H5,\"\")","v":""}]
[8,{"$f":"'Phase finale'!C6","v":""},"",{"$f":"IF('Phase finale'!E6<>\"\",'Phase finale'!E6,\"\")","v":""},{"$f":"IF('Phase finale'!F6<>\"\",'Phase finale'!F6,\"\")","v":""},{"$f":"IF('Phase finale'!G6<>\"\",'Phase finale'!G6,\"\")","v":""},{"$f":"IF('Phase finale'!H6<>\"\",'Phase finale'!H6,\"\")","v":""},{"$f":"'Phase finale'!C7","v":""},"",{"$f":"IF('Phase finale'!E7<>\"\",'Phase finale'!E7,\"\")","v":""},{"$f":"IF('Phase finale'!F7<>\"\",'Phase finale'!F7,\"\")","v":""},{"$f":"IF('Phase finale'!G7<>\"\",'Phase finale'!G7,\"\")","v":""},{"$f":"IF('Phase finale'!H7<>\"\",'Phase finale'!H7,\"\")","v":""}]
[9,{"$f":"'Phase finale'!C9","v":""},"",{"$f":"IF('Phase finale'!E9<>\"\",'Phase finale'!E9,\"\")","v":""},{"$f":"IF('Phase finale'!F9<>\"\",'Phase finale'!F9,\"\")","v":""},{"$f":"IF('Phase finale'!G9<>\"\",'Phase finale'!G9,\"\")","v":""},{"$f":"IF('Phase finale'!H9<>\"\",'Phase finale'!H9,\"\")","v":""},{"$f":"'Phase finale'!C10","v":""},"",{"$f":"IF('Phase finale'!E10<>\"\",'Phase finale'!E10,\"\")","v":""},{"$f":"IF('Phase finale'!F10<>\"\",'Phase finale'!F10,\"\")","v":""},{"$f":"IF('Phase finale'!G10<>\"\",'Phase finale'!G10,\"\")","v":""},{"$f":"IF('Phase finale'!H10<>\"\",'Phase finale'!H10,\"\")","v":""}]
[10,{"$f":"'Phase finale'!C11","v":""},"",{"$f":"IF('Phase finale'!E11<>\"\",'Phase finale'!E11,\"\")","v":""},{"$f":"IF('Phase finale'!F11<>\"\",'Phase finale'!F11,\"\")","v":""},{"$f":"IF('Phase finale'!G11<>\"\",'Phase finale'!G11,\"\")","v":""},{"$f":"IF('Phase finale'!H11<>\"\",'Phase finale'!H11,\"\")","v":""},{"$f":"'Phase finale'!C12","v":""},"",{"$f":"IF('Phase finale'!E12<>\"\",'Phase finale'!E12,\"\")","v":""},{"$f":"IF('Phase finale'!F12<>\"\",'Phase finale'!F12,\"\")","v":""},{"$f":"IF('Phase finale'!G12<>\"\",'Phase finale'!G12,\"\")","v":""},{"$f":"IF('Phase finale'!H12<>\"\",'Phase finale'!H12,\"\")","v":""}]
[11,{"$f":"'Phase finale'!C13","v":""},"",{"$f":"IF('Phase finale'!E13<>\"\",'Phase finale'!E13,\"\")","v":""},{"$f":"IF('Phase finale'!F13<>\"\",'Phase finale'!F13,\"\")","v":""},{"$f":"IF('Phase finale'!G13<>\"\",'Phase finale'!G13,\"\")","v":""},{"$f":"IF('Phase finale'!H13<>\"\",'Phase finale'!H13,\"\")","v":""},{"$f":"'Phase finale'!C14","v":""},"",{"$f":"IF('Phase finale'!E14<>\"\",'Phase finale'!E14,\"\")","v":""},{"$f":"IF('Phase finale'!F14<>\"\",'Phase finale'!F14,\"\")","v":""},{"$f":"IF('Phase finale'!G14<>\"\",'Phase finale'!G14,\"\")","v":""},{"$f":"IF('Phase finale'!H14<>\"\",'Phase finale'!H14,\"\")","v":""}]